Workbook

Sheet Start
B3: BUSINESS ANALYST
B7: BUSINESS ANALYST is a Profit Improvement and cash forecast tool for your business and your client's business. Use the tool to model "what if..?" scenarios.
B19: ©2020 Innovation Training Limited & BBS Computing Limited
B21: Version 13.00 | C21: 03.02.23

Sheet cover
A6: Business Analyst Report
A19: Prepared for
A22: =accs!G6 -> ABC Limited
A30: on
A32: =TODAY() -> 2023-09-29

Sheet accs
L1: Business Analyst
C4: Where are you now?
C6: Name | G6: ABC Limited
C8: Date of last accounts | G8: 2015-03-31
C10: Entity type
C13: Type of business | K13: Select and highlight
C15: Identify Key Driver | G15: 5 | H15: =LOOKUP(G15,O16:O21,P16:P21) -> Sales | O15: index | P15: driver
C16: (1 = hours 2 = bed nights 3 = covers 4 = other 5= sales) | O16: 1 | P16: Hours
O17: 2 | P17: Bed Nights
C18: IF Key Driver 2 or 3 above
C19: Select and highlight the number of days per week open | O19: 3 | P19: Covers
O20: 4 | P20: Other
O21: 5 | P21: Sales
C22: Where are you now ? | O22: 1
F23: % to sales | G23: £ | O23: 2
H24: =VLOOKUP(data!$A$100,data!$A$2:$CC$200,2,TRUE) -> 0 | O24: 3
O25: 4
C26: Sales | G26: 100000 | O26: 5
C27: Less Direct costs (materials) | F27: =IF(ISERR(+G27/$G$26),"-",+G27/$G$26) -> 0.2 | G27: 20000 | O27: 6
C28: Direct wages (inc Ers NI) | F28: =IF(ISERR(+G28/$G$26),"-",+G28/$G$26) -> 0.2 | G28: 20000 | O28: 7 | P28: nights open | Q28: 7
C30: Gross Margin | F30: =IF(ISERR(+G30/$G$26),"-",+G30/$G$26) -> 0.6 | G30: =+G26-G27-G28 -> 60000
C32: Less Expenses | F32: =IF(ISERR(+G32/$G$26),"-",+G32/$G$26) -> 0.4 | G32: 40000
C33: Depreciation | F33: =IF(ISERR(+G33/$G$26),"-",+G33/$G$26) -> 0 | G33: 0
C34: Add: Other Income | G34: 0
C35: Net Profit | G35: =+G30-G32-G33+G34 -> 20000
C39: =IF(data!$I$2<3,"Optional entries","") -> Optional entries
C40: Drawings per accounts | G40: 0 | P40: FALSE
P41: =IF(P40=TRUE,0,1) -> 1
C42: Taxation (separately if required) | G42: 0
C44: Minimum Cash Requirement | G44: =SUM(G38:G42) -> 0
C45: =IF(data!$I$2=3,,"Excluding capital expenditure and working capital requirements") -> Excluding capital expenditure and working capital requirements
C54: WARNINGS
C55: =IF($G$44>net_profit,"Discuss-cash spending compared to cash generated","") -> 

Sheet onesheet (2)
B5: This is a supplementary graph that can be used with the One Page Taster
B6: Print using the button above. The page is unprotected so that you can change the graph
AA8: Original | AB8: Adjusted
T12: =onesheet!Z32 -> 0 | U12: =onesheet!AA32 -> 20000 | V12: =onesheet!AB32 -> 20000 | X12: Sales | Y12: =W24 -> 100000 | Z12: =AD24 -> 96923.07692 | AA12: Sales | AB12: =W47 -> 100000 | AC12: =AD47 -> 108000
T13: =onesheet!Z33 -> Expenses | U13: =onesheet!AA33 -> 20000 | V13: =onesheet!AB33 -> 4000 | X13: Gross Profit | Y13: =W34 -> 60000 | Z13: =AD34 -> 60000 | AA13: Gross Profit | AB13: =W49 -> 60000 | AC13: =AD49 -> 60000
T14: =onesheet!Z38 -> Price | U14: =onesheet!AA38 -> 20000 | V14: =onesheet!AB38 -> 6000
T15: =onesheet!Z39 -> Sales | U15: =onesheet!AA39 -> 20000 | V15: =onesheet!AB39 -> 8000
T22: =onesheet!X54 -> 0 | U22: =onesheet!Y54 -> 0 | V22: =onesheet!Z54 -> 0 | W22: =onesheet!AA54 -> 0 | X22: =onesheet!AB54 -> 0 | Y22: =onesheet!AC54 -> 0 | Z22: =onesheet!AD54 -> 0 | AA22: =onesheet!AE54 -> 0 | AB22: =onesheet!AF54 -> 0 | AC22: =onesheet!AG54 -> 0 | AD22: =onesheet!AH54 -> 0
T23: =onesheet!X55 -> 0 | U23: =onesheet!Y55 -> 0 | V23: =onesheet!Z55 -> 0 | W23: =onesheet!AA55 -> Original | X23: =onesheet!AB55 -> 0 | Y23: =onesheet!AC55 -> 0 | Z23: =onesheet!AD55 -> Revised | AA23: =onesheet!AE55 -> 0 | AB23: =onesheet!AF55 -> Turnover required | AC23: =onesheet!AG55 -> 0 | AD23: =onesheet!AH55 -> 
T24: =onesheet!X56 -> 0 | U24: =onesheet!Y56 -> Sales | V24: =onesheet!Z56 -> 0 | W24: =onesheet!$F$16 -> 100000 | X24: =onesheet!AB56 -> 0 | Y24: =onesheet!AC56 -> 0 | Z24: =onesheet!AD56 -> 105000 | AA24: =onesheet!AE56 -> 0 | AB24: =onesheet!AF56 -> to maintain profit | AC24: =onesheet!AG56 -> 0 | AD24: =onesheet!AH56 -> 96923.07692
T25: =onesheet!X57 -> 0 | U25: =onesheet!Y57 ->  | V25: =onesheet!Z57 -> 0 | W25: =onesheet!AA57 -> 0 | X25: =onesheet!AB57 -> 0 | Y25: =onesheet!AC57 -> 0 | Z25: =onesheet!AD57 -> 0 | AA25: =onesheet!AE57 -> 0 | AB25: =onesheet!AF57 -> 0 | AC25: =onesheet!AG57 -> 0 | AD25: =onesheet!AH57 -> 0
T26: =onesheet!X58 -> 0 | U26: =onesheet!Y58 -> 0 | V26: =onesheet!Z58 -> 0 | W26: =onesheet!AA58 -> 0 | X26: =onesheet!AB58 -> 0 | Y26: =onesheet!AC58 -> 0 | Z26: =onesheet!AD58 -> 0 | AA26: =onesheet!AE58 -> 0 | AB26: =onesheet!AF58 -> 0 | AC26: =onesheet!AG58 -> 0 | AD26: =onesheet!AH58 -> 0
T27: =onesheet!X59 -> 0 | U27: =onesheet!Y59 -> 0 | V27: =onesheet!Z59 -> 0 | W27: =onesheet!AA59 -> 0 | X27: =onesheet!AB59 -> 0 | Y27: =onesheet!AC59 -> 0 | Z27: =onesheet!AD59 -> 0 | AA27: =onesheet!AE59 -> 0 | AB27: =onesheet!AF59 -> 0 | AC27: =onesheet!AG59 -> 0 | AD27: =onesheet!AH59 -> 0
T28: =onesheet!X60 -> 0 | U28: =onesheet!Y60 -> 0 | V28: =onesheet!Z60 -> 0 | W28: =onesheet!AA60 -> 0 | X28: =onesheet!AB60 -> 0 | Y28: =onesheet!AC60 -> 0 | Z28: =onesheet!AD60 -> 0 | AA28: =onesheet!AE60 -> 0 | AB28: =onesheet!AF60 -> 0 | AC28: =onesheet!AG60 -> 0 | AD28: =onesheet!AH60 -> 0
T29: =onesheet!X61 -> 0 | U29: =onesheet!Y61 -> 0 | V29: =onesheet!Z61 -> 0 | W29: =onesheet!AA61 -> 0 | X29: =onesheet!AB61 -> 0 | Y29: =onesheet!AC61 -> 0 | Z29: =onesheet!AD61 -> 0 | AA29: =onesheet!AE61 -> 0 | AB29: =onesheet!AF61 -> 0 | AC29: =onesheet!AG61 -> 0 | AD29: =onesheet!AH61 -> 0
T30: =onesheet!X62 -> 0 | U30: =onesheet!Y62 -> 0 | V30: =onesheet!Z62 -> 0 | W30: =onesheet!AA62 -> 0 | X30: =onesheet!AB62 -> 0 | Y30: =onesheet!AC62 -> 0 | Z30: =onesheet!AD62 -> 0 | AA30: =onesheet!AE62 -> 0 | AB30: =onesheet!AF62 -> 0 | AC30: =onesheet!AG62 -> 0 | AD30: =onesheet!AH62 -> 0
T31: =onesheet!X63 -> 0 | U31: =onesheet!Y63 -> 0 | V31: =onesheet!Z63 -> 0 | W31: =onesheet!AA63 -> 0 | X31: =onesheet!AB63 -> 0 | Y31: =onesheet!AC63 -> 0 | Z31: =onesheet!AD63 -> 0 | AA31: =onesheet!AE63 -> 0 | AB31: =onesheet!AF63 -> 0 | AC31: =onesheet!AG63 -> 0 | AD31: =onesheet!AH63 -> 0
T32: =onesheet!X64 -> 0 | U32: =onesheet!Y64 -> 0 | V32: =onesheet!Z64 -> 0 | W32: =onesheet!AA64 -> 0 | X32: =onesheet!AB64 -> 0 | Y32: =onesheet!AC64 -> 0 | Z32: =onesheet!AD64 -> 0 | AA32: =onesheet!AE64 -> 0 | AB32: =onesheet!AF64 -> 0 | AC32: =onesheet!AG64 -> 0 | AD32: =onesheet!AH64 -> 0
T33: =onesheet!X65 -> 0 | U33: =onesheet!Y65 -> 0 | V33: =onesheet!Z65 -> 0 | W33: =onesheet!AA65 -> 0 | X33: =onesheet!AB65 -> 0 | Y33: =onesheet!AC65 -> 0 | Z33: =onesheet!AD65 -> 0 | AA33: =onesheet!AE65 -> 0 | AB33: =onesheet!AF65 -> 0 | AC33: =onesheet!AG65 -> 0 | AD33: =onesheet!AH65 -> 0
T34: =onesheet!X66 -> Base | U34: =onesheet!Y66 -> Profit % | V34: =onesheet!Z66 -> 0.6 | W34: =onesheet!AA66 -> 60000 | X34: =onesheet!AB66 -> 0 | Y34: =onesheet!AC66 -> 0.619047619 | Z34: =onesheet!AD66 -> 65000 | AA34: =onesheet!AE66 -> 0 | AB34: =onesheet!AF66 -> 0 | AC34: =onesheet!AG66 -> 0 | AD34: =onesheet!AH66 -> 60000
T35: =onesheet!X67 -> 0 | U35: =onesheet!Y67 -> 0 | V35: =onesheet!Z67 -> 0 | W35: =onesheet!AA67 -> 0 | X35: =onesheet!AB67 -> 0 | Y35: =onesheet!AC67 -> 0 | Z35: =onesheet!AD67 -> 0 | AA35: =onesheet!AE67 -> 0 | AB35: =onesheet!AF67 -> 0 | AC35: =onesheet!AG67 -> 0 | AD35: =onesheet!AH67 -> 0
T36: =onesheet!X68 -> 0 | U36: =onesheet!Y68 -> 0 | V36: =onesheet!Z68 -> 0 | W36: =onesheet!AA68 -> 0 | X36: =onesheet!AB68 -> 0 | Y36: =onesheet!AC68 -> 0 | Z36: =onesheet!AD68 -> 0 | AA36: =onesheet!AE68 -> 0 | AB36: =onesheet!AF68 -> 0 | AC36: =onesheet!AG68 -> 0 | AD36: =onesheet!AH68 -> 0.07692307692
T37: =onesheet!X69 -> 0 | U37: =onesheet!Y69 -> Therefore a drop in sales volume of 7.69% | V37: =onesheet!Z69 -> 0 | W37: =onesheet!AA69 -> 0 | X37: =onesheet!AB69 -> 0 | Y37: =onesheet!AC69 -> 0 | Z37: =onesheet!AD69 -> 0 | AA37: =onesheet!AE69 -> 0 | AB37: =onesheet!AF69 -> 0 | AC37: =onesheet!AG69 -> 0 | AD37: =onesheet!AH69 -> 0
T38: =onesheet!X70 -> 0 | U38: =onesheet!Y70 -> would still result in the same gross profit total | V38: =onesheet!Z70 -> 0 | W38: =onesheet!AA70 -> 0 | X38: =onesheet!AB70 -> 0 | Y38: =onesheet!AC70 -> 0 | Z38: =onesheet!AD70 -> 0 | AA38: =onesheet!AE70 -> 0 | AB38: =onesheet!AF70 -> 0 | AC38: =onesheet!AG70 -> 0 | AD38: =onesheet!AH70 -> 0
T39: =onesheet!X71 -> 0 | U39: =onesheet!Y71 -> but at a higher gross profit margin. | V39: =onesheet!Z71 -> 0 | W39: =onesheet!AA71 -> 0 | X39: =onesheet!AB71 -> 0 | Y39: =onesheet!AC71 -> 0 | Z39: =onesheet!AD71 -> 0 | AA39: =onesheet!AE71 -> 0 | AB39: =onesheet!AF71 -> 0 | AC39: =onesheet!AG71 -> 0 | AD39: =onesheet!AH71 -> 0
T40: =onesheet!X72 -> 0 | U40: =onesheet!Y72 -> 0 | V40: =onesheet!Z72 -> 0 | W40: =onesheet!AA72 -> 0 | X40: =onesheet!AB72 -> 0 | Y40: =onesheet!AC72 -> 0 | Z40: =onesheet!AD72 -> 0 | AA40: =onesheet!AE72 -> 0 | AB40: =onesheet!AF72 -> 0 | AC40: =onesheet!AG72 -> 0 | AD40: =onesheet!AH72 -> 
T41: =onesheet!X73 -> 0 | U41: =onesheet!Y73 -> 0 | V41: =onesheet!Z73 -> 0 | W41: =onesheet!AA73 -> 0 | X41: =onesheet!AB73 -> 0 | Y41: =onesheet!AC73 -> 0 | Z41: =onesheet!AD73 -> 0 | AA41: =onesheet!AE73 -> 0 | AB41: =onesheet!AF73 -> 0 | AC41: =onesheet!AG73 -> 0 | AD41: =onesheet!AH73 -> 0
T42: =onesheet!X74 -> 0 | U42: =onesheet!Y74 -> 0 | V42: =onesheet!Z74 -> 0 | W42: =onesheet!AA74 -> 0 | X42: =onesheet!AB74 -> 0 | Y42: =onesheet!AC74 -> 0 | Z42: =onesheet!AD74 -> 0 | AA42: =onesheet!AE74 -> 0 | AB42: =onesheet!AF74 -> 0 | AC42: =onesheet!AG74 -> 0 | AD42: =onesheet!AH74 -> 0
T43: =onesheet!X75 -> 0 | U43: =onesheet!Y75 -> 0 | V43: =onesheet!Z75 -> 0 | W43: =onesheet!AA75 -> 0 | X43: =onesheet!AB75 -> 0 | Y43: =onesheet!AC75 -> 0 | Z43: =onesheet!AD75 -> 0 | AA43: =onesheet!AE75 -> 0 | AB43: =onesheet!AF75 -> 0 | AC43: =onesheet!AG75 -> 0 | AD43: =onesheet!AH75 -> 0
T44: =onesheet!X76 -> 0 | U44: =onesheet!Y76 -> 0 | V44: =onesheet!Z76 -> 0 | W44: =onesheet!AA76 -> 0 | X44: =onesheet!AB76 -> 0 | Y44: =onesheet!AC76 -> 0 | Z44: =onesheet!AD76 -> 0 | AA44: =onesheet!AE76 -> 0 | AB44: =onesheet!AF76 -> 0 | AC44: =onesheet!AG76 -> 0 | AD44: =onesheet!AH76 -> 0
T45: =onesheet!X77 -> 0 | U45: =onesheet!Y77 -> 0 | V45: =onesheet!Z77 -> 0 | W45: =onesheet!AA77 -> 0 | X45: =onesheet!AB77 -> 0 | Y45: =onesheet!AC77 -> 0 | Z45: =onesheet!AD77 -> 0 | AA45: =onesheet!AE77 -> 0 | AB45: =onesheet!AF77 -> 0 | AC45: =onesheet!AG77 -> 0 | AD45: =onesheet!AH77 -> 0
T46: =onesheet!X78 -> 0 | U46: =onesheet!Y78 ->  | V46: =onesheet!Z78 ->  | W46: =onesheet!AA78 -> Original | X46: =onesheet!AB78 -> 0 | Y46: =onesheet!AC78 -> 0 | Z46: =onesheet!AD78 -> Revised | AA46: =onesheet!AE78 -> 0 | AB46: =onesheet!AF78 -> Turnover required | AC46: =onesheet!AG78 -> 0 | AD46: =onesheet!AH78 -> 0
T47: =onesheet!X79 -> 0 | U47: =onesheet!Y79 -> Sales | V47: =onesheet!Z79 ->  | W47: =onesheet!AA79 -> 100000 | X47: =onesheet!AB79 ->  | Y47: =onesheet!AC79 -> 0 | Z47: =onesheet!AD79 -> 90000 | AA47: =onesheet!AE79 ->  | AB47: =onesheet!AF79 -> to maintain profit | AC47: =onesheet!AG79 -> 0 | AD47: =onesheet!AH79 -> 108000
T48: =onesheet!X80 -> 0 | U48: =onesheet!Y80 -> 0 | V48: =onesheet!Z80 -> 0 | W48: =onesheet!AA80 -> 0 | X48: =onesheet!AB80 -> 0 | Y48: =onesheet!AC80 -> 0 | Z48: =onesheet!AD80 -> 0 | AA48: =onesheet!AE80 ->  | AB48: =onesheet!AF80 -> 0 | AC48: =onesheet!AG80 -> 0 | AD48: =onesheet!AH80 -> 
T49: =onesheet!X81 -> Base | U49: =onesheet!Y81 -> Profit % | V49: =onesheet!Z81 -> 0.6 | W49: =onesheet!AA81 -> 60000 | X49: =onesheet!AB81 -> 0 | Y49: =onesheet!AC81 -> 0.5555555556 | Z49: =onesheet!AD81 -> 50000 | AA49: =onesheet!AE81 -> 0 | AB49: =onesheet!AF81 -> 0 | AC49: =onesheet!AG81 -> 0.5555555556 | AD49: =onesheet!AH81 -> 60000
T50: =onesheet!X82 -> 0 | U50: =onesheet!Y82 -> 0 | V50: =onesheet!Z82 -> 0 | W50: =onesheet!AA82 -> 0 | X50: =onesheet!AB82 -> 0 | Y50: =onesheet!AC82 ->  | Z50: =onesheet!AD82 -> 0 | AA50: =onesheet!AE82 -> 0 | AB50: =onesheet!AF82 -> 0 | AC50: =onesheet!AG82 -> 0 | AD50: =onesheet!AH82 -> 0
T51: =onesheet!X83 -> 0 | U51: =onesheet!Y83 -> Therefore an increase in sales volume of 20.00% | V51: =onesheet!Z83 -> 0 | W51: =onesheet!AA83 -> 0 | X51: =onesheet!AB83 -> 0 | Y51: =onesheet!AC83 -> 0 | Z51: =onesheet!AD83 -> 0 | AA51: =onesheet!AE83 -> 0 | AB51: =onesheet!AF83 -> 0 | AC51: =onesheet!AG83 -> 0 | AD51: =onesheet!AH83 -> 0.2
T52: =onesheet!X84 -> 0 | U52: =onesheet!Y84 -> would be required to maintain the same gross profit | V52: =onesheet!Z84 -> 0 | W52: =onesheet!AA84 -> 0 | X52: =onesheet!AB84 -> 0 | Y52: =onesheet!AC84 -> 0 | Z52: =onesheet!AD84 -> 0 | AA52: =onesheet!AE84 -> 0 | AB52: =onesheet!AF84 -> 0 | AC52: =onesheet!AG84 -> 0 | AD52: =onesheet!AH84 -> 0
T53: =onesheet!X85 -> 0 | U53: =onesheet!Y85 -> as before (Based on revised turnover) | V53: =onesheet!Z85 -> 0 | W53: =onesheet!AA85 -> 0 | X53: =onesheet!AB85 -> 0 | Y53: =onesheet!AC85 -> 0 | Z53: =onesheet!AD85 -> 0 | AA53: =onesheet!AE85 -> 0 | AB53: =onesheet!AF85 -> 0 | AC53: =onesheet!AG85 -> 0 | AD53: =onesheet!AH85 -> 0
T54: =onesheet!X86 -> 0 | U54: =onesheet!Y86 -> 0 | V54: =onesheet!Z86 -> 0 | W54: =onesheet!AA86 -> 0 | X54: =onesheet!AB86 -> 0 | Y54: =onesheet!AC86 -> 0 | Z54: =onesheet!AD86 ->  | AA54: =onesheet!AE86 -> 0 | AB54: =onesheet!AF86 -> 0 | AC54: =onesheet!AG86 -> 0 | AD54: =onesheet!AH86 -> 0
T55: =onesheet!X87 -> 0 | U55: =onesheet!Y87 -> 0 | V55: =onesheet!Z87 -> 0 | W55: =onesheet!AA87 -> 0 | X55: =onesheet!AB87 -> 0 | Y55: =onesheet!AC87 -> 0 | Z55: =onesheet!AD87 -> 0 | AA55: =onesheet!AE87 -> 0 | AB55: =onesheet!AF87 -> 0 | AC55: =onesheet!AG87 -> 0 | AD55: =onesheet!AH87 -> 0

Sheet KPI
B6: The print area is set - do File Print to print the page
C9: =Name -> ABC Limited
C11: Key Performance Indicators
J13: Original
C14: Gross Profit % | J14: =onesheet!$I$22 -> 0.6
C15: The gross profit of a company is the total sales of the firm minus the total cost of the goods sold. The total sales are all the goods sold by the company. The total cost of the goods sold is the sum of all the variable costs involved in sales. The gross profit % is (Sales - Cost of Sales)*100/Sales
C20: Net Profit % | J20: =onesheet!$I$29 -> 0.2
C21: The net profit is the profit left after deducting all business running expenses from the "gross profit". It is calculated as (Sales - cost of sales - expenses)*100/Sales
Z22: 1
C24: Debtor Days | J24: =debtordays1 -> 36.5 | Z24: 1
C25: Debtor days is a measure of how quickly a business gets paid. It’s the average number of days taken for a business to collect a payment from its customers. It is the debtors at the balance sheet date *365/ sales. The lower the figure the better.
C29: Creditor Days | J29: =creditordays -> 18.25 | Z29: 1
C30: Creditor days is a measure of how quickly a business pays its suppliers. It is the amount owed at the balance sheet date *365/ cost of sales.
C33: Inventory Days (Stock turn days) | J33: =stockdays -> 45.625 | Z33: 1
C34: Inventory or stock days is the average time that is taken to convert stock into sales i.e. how many days stock is on hand. (Stock*365/cost of goods sold).
Z35: 1
Z37: 1
Z39: 1
B43: Can you improve any of these?
U57: 0

Sheet Variables
B6: The print area is set - do File Print to print the page
C9: =Name -> ABC Limited
C11: Effect of changes on Profitability and CashFlow
R12: Memo
R13: % from one
F14: Last Year | H14: This year | L14: Effect on | M14: Effect on | R14: page taster
J15: % | L15: Profit | M15: Cashflow
C16: Turnover | H16: =Sales -> 100000 | J16: =AA16 -> -8 | K16: =IF(J16<0,"decrease","increase") -> decrease | L16: =turnover*J16/100 -> -8000 | M16: =L16-(L16*debtordays1/365) -> -7200 | P16: <-------- | R16: =pricespercentagechange2 -> -8 | S16: =IF(R16<0,"decrease","increase") -> decrease | Z16: 92 | AA16: =Z16-100 -> -8
C18: Cost of Sales - Materials | H18: =onesheet!F18 -> 20000 | J18: =AA18 -> -7 | K18: =IF(J18<0,"increase","reduction") -> increase | L18: =costofsales*J18/100 -> -1400 | M18: =cashflowcreditordays -> -1505 | P18: <-------- | Z18: 93 | AA18: =Z18-100 -> -7
C20: Cost of Sales - Direct Wages | H20: =onesheet!F20 -> 20000
C21: Gross Margin | G21: =grossmargin/turnover -> 0.6 | H21: =turnover-costofsales-H20 -> 60000
C23: Other Overheads | H23: =onesheet!F24 -> 40000 | J23: =AA23 -> -10 | K23: =IF(J23<0,"increase","reduction") -> increase | L23: =otheroverheads*J23/100 -> -4000 | M23: =L23 -> -4000 | P23: <-------- | R23: =expensespercentchang2 -> -10 | S23: =IF(R23<0,"increase","reduction") -> increase | Z23: 90 | AA23: =Z23-100 -> -10
C25: Net Profit | G25: =H25/turnover -> 0.2 | H25: =grossmargin-otheroverheads -> 20000
J26: Days
C27: Stocks | F27: 2000 | H27: 2500 | J27: =AA27 -> -7 | K27: =IF(J27<0,"increase","reduction") -> increase | M27: =addlstockcash -> -383.5616438 | P27: <-------- | Z27: 93 | AA27: =Z27-100 -> -7
C29: Debtors | H29: 10000 | J29: =AA29 -> 1 | K29: =IF(J29<0,"increase","reduction") -> reduction | M29: =debtordayscash -> 273.9726027 | P29: <-------- | Z29: 101 | AA29: =Z29-100 -> 1
C31: Creditors | H31: 1000 | J31: =AA31 -> -7 | K31: =IF(J31=0,"","increase") -> increase | M31: =creditorscashgen -> -383.5616438 | P31: <-------- | Z31: 93 | AA31: =Z31-100 -> -7
J32: %
C33: =IF(volumepercentage<0,"Decrease in sales volume","Increase in sales volume") -> Decrease in sales volume | J33: =AA33 -> -10 | K33: =IF(J33=0,"decrease","increase") -> increase | L33: =profitvolume -> -8000 | M33: =volumecashmovement -> -6850 | P33: <-------- | R33: =salesvolumepercent2 -> -10 | S33: =IF(R33>0,"increase","reduction") -> reduction | Z33: 90 | AA33: =Z33-100 -> -10
B37: Type your comments here
U51: 0

Sheet debtordays (hidden)
I7: volume effect | K7: Profit | L7: cash
D8: Turnover | G8: =turnover -> 100000 | I8: 0.01 | K8: =G8*I8 -> 1000 | L8: =K8*(1-debtordays1/365) -> 900
D9: COGS
D10: Debtors | G10: =debtors -> 10000
D12: Debtor Days | G12: =debtors*365/turnover -> 36.5
D14: Reduce Debtor days by | G14: =debtordaysreduction -> 1
D16: Additonal cash generated | G16: =G10-G18 -> 273.9726027
D18: Revised debtors figure | G18: =G8/365*(G12-G14) -> 9726.027397

Sheet creditors (hidden)
O7: Revised | Q7: Reduction
D8: Purchases | G8: =costofsales -> 20000 | K8: opening stock | M8: =openingstock -> 2000 | O8: =M8 -> 2000 | U8: closing crs | V8: =X10*creditordays/365 -> 1025 | W8: opening crs | X8: =$G$10 -> 1000
D10: Creditors | G10: =creditors -> 1000 | K10: purchases (calculated) | M10: =M14-M8-M12 -> 20500 | O10: =O14-O8-O12 -> 22075 | Q10: =-Q14*creditordays/365 -> 70 | U10: Paid | V10: =X10+X8-V8 -> 20475 | W10: purchases | X10: =M10 -> 20500
D12: Days to pay suppliers | G12: =creditors*365/costofsales -> 18.25 | K12: closing stock | M12: =-closingstock -> -2500 | O12: =M12-(M12*Variables!$J$18/100) -> -2675 | Q12: =-M12+O12 -> -175
D14: Increase days to pay by | G14: =creditorsdaysadjust -> -7 | K14: COGS | M14: =costofsales -> 20000 | O14: =M14-(M14*Variables!$J$18/100) -> 21400 | Q14: =M14-O14 -> -1400 | V14: =SUM(V8:V13) -> 21500 | X14: =SUM(X8:X13) -> 21500
U15: Revised
D16: Additonal cash generated | G16: =G18-G10 -> -383.5616438 | K16: Check | M16: =M8+M10+M12 -> 20000 | O16: =O8+O10+O12 -> 21400 | U16: closing crs | V16: =X18*creditordays/365 -> 1103.75 | W16: opening crs | X16: =G10 -> 1000
D18: Revised Creditors figure | G18: =(costofsales/365)*(G12+G14) -> 616.4383562 | Q18: =SUM(Q10:Q17) -> -1505 | U18: Paid | V18: =X18+X16-V16 -> 21971.25 | W18: purchases | X18: =O10 -> 22075
V19: =SUM(V16:V18) -> 23075 | X19: =SUM(X16:X18) -> 23075
K22: Calculation for Volume changes | O22: =volumepercentage/100 -> -0.1
O24: Revised | Q24: Reduction
K25: opening stock | M25: =openingstock -> 2000 | O25: =M25 -> 2000 | U25: closing crs | V25: =X27*creditordays/365 -> 1025 | W25: opening crs | X25: =$G$10 -> 1000
K27: purchases (calculated) | M27: =M31-M25-M29 -> 20500 | O27: =O31-O25-O29 -> 22750 | Q27: =-Q31*creditordays/365 -> 100 | U27: Paid | V27: =X27+X25-V25 -> 20475 | W27: purchases | X27: =M27 -> 20500
K29: closing stock | M29: =-closingstock -> -2500 | O29: =M29-(M29*O22) -> -2750 | Q29: =-M29+O29 -> -250
K31: COGS | M31: =costofsales -> 20000 | O31: =M31-(M31*(O22)) -> 22000 | Q31: =M31-O31 -> -2000 | V31: =SUM(V25:V30) -> 21500 | X31: =SUM(X25:X30) -> 21500
U32: Revised
K33: Check | M33: =M25+M27+M29 -> 20000 | O33: =O25+O27+O29 -> 22000 | U33: closing crs | V33: =X35*creditordays/365 -> 1137.5 | W33: opening crs | X33: =$G$10 -> 1000
Q35: =SUM(Q27:Q34) -> -2150 | U35: Paid | V35: =X35+X33-V33 -> 22612.5 | W35: purchases | X35: =O27 -> 22750
V36: =SUM(V33:V35) -> 23750 | X36: =SUM(X33:X35) -> 23750
K38: Sales
M39: volume effect | O39: Profit | P39: cash
K40: =turnover -> 100000 | M40: =volumepercentage/100 -> -0.1 | O40: =K40*M40 -> -10000 | P40: =O40*(1-debtordays1/365) -> -9000
K43: Cash | P43: =P40-Q35 -> -6850
M44: Sales | N44: COS
K45: Profit | M45: =O40 -> -10000 | N45: =O31-M31 -> 2000 | O45: =M45+N45 -> -8000

Sheet Stock (hidden)
D8: Stock holding | G8: =closingstock -> 2500
D10: Cost of goods sold | G10: =dircosts -> 20000
D12: Stock days | G12: =stock*365/dircosts -> 45.625
D14: Reduce stock days by | G14: =stockdaysreduction -> -7
D16: Additonal cash generated | G16: =G8-G18 -> -383.5616438
D18: Revised stock holding | G18: =((G12-G14)*G10)/365 -> 2883.561644

Sheet onesheet
B5: Use this page as a "taster" to generate interest in the full product. (Last year figures are picked up from Where are you now? Screen)
B6: The print area is set - do File Print to print the page OR click the button above to go to the Print page
C9: =Name -> ABC Limited
C12: How much profit would you like to make?
F14: Last year | I14: As % of
I15: Revenue
D16: Sales | F16: =Sales -> 100000 | I16: =IF(ISERR(+F16/F16),"",(+F16/F16)) -> 1
D18: Direct Costs | F18: =dircosts -> 20000 | I18: =IF(ISERR(+F18/$F$16),"",+F18/$F$16) -> 0.2
D20: Direct Wages | F20: =dirwages -> 20000 | I20: =IF(ISERR(+F20/$F$16),"",+F20/$F$16) -> 0.2
D22: Gross Profit | F22: =Sales-dircosts-dirwages -> 60000 | I22: =IF(ISERR(+F22/$F$16),"",+F22/$F$16) -> 0.6
D24: Expenses | F24: =expenses -> 40000 | I24: =IF(ISERR(+F24/$F$16),"",+F24/$F$16) -> 0.4
D26: Depreciation | F26: =depreciation -> 0 | I26: =IF(ISERR(+F26/$F$16),"",+F26/$F$16) -> 0
Y27: =F29 -> 20000 | Z27: =M48 -> 8000
D28: Other income | F28: =otherinc -> 0 | I28: =IF(ISERR(+F28/$F$16),"",(+F28/$F$16)*(-1)) -> 0
D29: Net Profit | F29: =+F22+F28-F26-F24 -> 20000 | I29: =IF(ISERR(+F29/$F$16),"",+F29/$F$16) -> 0.2
C31: Please note the following potential profit movements | Q31: % spinner
T32: 90 | U32: =T32-100 -> -10 | AA32: =Y27 -> 20000 | AB32: =Y27 -> 20000
C33: =IF(U32>=0,"Reducing expenses by","Increasing expenses by") -> Increasing expenses by | E33: =IF(U32<0,-U32/100,+U32/100) -> 0.1 | F33: =IF(U32<0,"will decrease profits by","may only increase profits by") -> will decrease profits by | M33: =expenses*$E$33 -> 4000 | P33: <----- | R33: These percentage changes are carried forward | Y33: =+$Y$27+M33 -> 24000 | Z33: Expenses | AA33: =Y27 -> 20000 | AB33: =M33 -> 4000
C37: Improving the gross revenue (sales) can have a signifcant effect.
R38: to the next page - where the effect on cashflow is | T38: 90 | U38: =T38-100 -> -10 | Z38: Price | AA38: =Y27 -> 20000 | AB38: =M39 -> 6000
C39: =IF(U38<0,"Decreasing sales by","Increasing sales by") -> Decreasing sales by | E39: =IF(U38<0,-U38/100,+U38/100) -> 0.1 | F39: =IF(U38<0,"will decrease profits by","may increase profits by") -> will decrease profits by | M39: =(Sales-dircosts-dirwages)*$E$39 -> 6000 | P39: <----- | R39: calculated | Y39: =+$Y$27+M39 -> 26000 | Z39: Sales | AA39: =Y27 -> 20000 | AB39: =M48 -> 8000
C40: This assumes your direct costs increase proportionately but direct wages and expenses remain unchanged.
C42: But why stop here? YOU have control here. Increasing volumes will have an effect as will increasing
C43: prices. If the figure were | E43: =+Q16 -> 0 | F43: the increased revenue would increase profits by | N43: =+R22-expenses-depreciation+otherinc-#REF! -> 
C46: The improvements become more marked if this is achieved by price increases alone as direct costs will
T47: 92 | U47: =T47-100 -> -8
C48: =IF(U47<0,"Decreasing prices by","Increasing prices by") -> Decreasing prices by | E48: =IF(U47<0,-U47/100,+U47/100) -> 0.08 | F48: =IF(U47<0,"will decrease profits by","may increase profits by") -> will decrease profits by | M48: =Sales*$E$48 -> 8000 | P48: <----- | Y48: =+$Y$27+M48 -> 28000
C50: And a movement of | E50: =+T51/100 -> 0.1 | H50: may increase prices by | N50: =Sales*E50 -> 10000 | P50: <-----
T51: 10
C52: Are you aware that increasing sales and losing some business may actually result in higher profits?
C53: Do you know how much sales volume you can lose and still be better off?
C54: Increasing "prices" by | E54: =+T55/100 -> 0.05 | F54: = the same profit as before even if you lose volume of | N54: =IF(ISERR(+AH68),"",+AH68) -> 0.07692307692 | P54: <-----
T55: 5 | AA55: Original | AD55: Revised | AF55: Turnover required
C56: Decreasing "prices" by | E56: =+T57/100 -> 0.1 | F56: = the same profit only if you increase volume by | N56: =IF(ISERR(+AH83),"",+AH83) -> 0.2 | P56: <----- | Y56: Sales | AA56: =Sales -> 100000 | AD56: =(+AA56*T55/100)+AA56 -> 105000 | AF56: to maintain profit | AH56: =+AH66/AC66 -> 96923.07692
T57: 10
C59: Type your comments here
B66: IF YOU WOULD WELCOME A MORE IN-DEPTH DISCUSSION OF "POTENTIAL PROFIT IMPROVEMENT" | X66: Base | Y66: Profit % | Z66: =+I22 -> 0.6 | AA66: =+AA56*Z66 -> 60000 | AC66: =+AD66/AD56 -> 0.619047619 | AD66: =+AA66+AD56-AA56 -> 65000 | AH66: =+AA66 -> 60000
B67: METHODS PLEASE CONTACT US TO ARRANGE A MUTUALLY CONVENIENT MEETING
AH68: =+(AD56-AH56)/AD56 -> 0.07692307692
Y69: ="Therefore a drop in sales volume of "&TEXT(AH68,"0.00%") -> Therefore a drop in sales volume of 7.69%
Y70: would still result in the same gross profit total
Y71: but at a higher gross profit margin.
AA78: Original | AD78: Revised | AF78: Turnover required
Y79: Sales | AA79: =Sales -> 100000 | AD79: =AA79-(+AA79*T57/100) -> 90000 | AF79: to maintain profit | AH79: =+AH81/AC81 -> 108000
X81: Base | Y81: Profit % | Z81: =+I22 -> 0.6 | AA81: =+AA79*Z81 -> 60000 | AC81: =+AD81/AD79 -> 0.5555555556 | AD81: =+AA81-(AA79-AD79) -> 50000 | AG81: =+AA81/AH79 -> 0.5555555556 | AH81: =+AA81 -> 60000
Y83: ="Therefore an increase in sales volume of "&TEXT(AH83,"0.00%") -> Therefore an increase in sales volume of 20.00% | AH83: =(AH79-AD79)/AD79 -> 0.2
Y84: would be required to maintain the same gross profit
Y85: as before (Based on revised turnover)
C142: =Y27 -> 20000 | D142: =Z27 -> 8000

Sheet Expenses
K1: Business Analyst
C4: Office and Other Non Direct Expenses
G6: £
C7: Expenses in last accounts | G7: =expenses -> 40000
C9: Adjustments to expenses
C10: Increased costs (list)
C17: Non-recurring /reduced expenses
C24: Expected Costs | G24: =SUM(G7:G15)-SUM(G18:G23) -> 40000
C26: Inflation adjustment | G26: =(+M26+N26)/10 -> 0 | M26: 100 | N26: -100
C28: Forecast Expenses | G28: =((+G24*G26/100)+G24) -> 40000
C30: Depreciation
C31: In last accounts | G31: =accs!$G$33 -> 0
C32: Adjustment (+/-)
C33: Forecast Depreciation | G33: =SUM(G31:G32) -> 0
C35: Miscellaneous data entry
C36: There are some other base figures we require for the model.
C37: Enter them here | M37: =data!$I$2 -> 1
C38: Mark up on goods sold | G38: 20 | H38: %
I39: Memo-Last Year
C40: The "Target" Profit we are aiming | G40: 85000 | I40: =net_profit -> 20000
C41: to achieve in the "forecast" period
C42: =IF(M37>=3,,"Optional entries") -> Optional entries
C43: =IF(M37>=3,,"Target Drawings") -> Target Drawings | I43: =drawings -> 0
C44: =IF(M37>=3,,"Potential Tax Liabilities") -> Potential Tax Liabilities | I44: =taxation -> 0
C46: Projected Other Income | G46: 0 | I46: =otherinc -> 0

Sheet data
A2: 1 | B2: Hotel (Bed nights) | C2: 1 | E2: 1 | F2: Sole Trader | I2: 1
A3: 2 | B3: Manufacturing | C3: 2 | E3: 2 | F3: Partnership
A4: 3 | B4: Nursing Home (Bed nights) | E4: 3 | F4: Limited Company
A5: 4 | B5: Professional (Hourly) | E5: 4
A6: 5 | B6: Restaurants (Covers) | E6: 5
A7: 6 | B7: Retail (Sales)
A8: 7 | B8: Trade (Hourly)
A9: 8 | B9: Other
A10: 9 | B10: School
A11: 10 | B11: Medical Practitioner
A12: 11
A13: 12
A14: 13
A15: 14
A16: 15
A17: 16
A18: 17
A19: 18
A20: 19
A21: 20
A22: 21
A23: 22
A24: 23
A25: 24
A26: 25
A27: 26
A28: 27
A29: 28
A30: 29
A31: 30
A32: 31
A33: 32
A34: 33
A35: 34
A36: 35
A37: 36
A38: 37
A39: 38
A40: 39
A41: 40
A42: 41
A43: 42
A44: 43
A45: 44
A46: 45
A47: 46
A48: 47
A49: 48
A50: 49
A51: 50
A52: 51
A53: 52
A54: 53
A55: 54
A56: 55
A57: 56
A58: 57
A59: 58
A60: 59
A61: 60
A62: 61
A63: 62
A64: 63
A100: 1
A101: 1

Sheet Dirwages-units
L1: Business Analyst
N2: 1
C4: Stage 1 - Direct wages (excluding admin and overhead expenses ie Productive Wages only)
C7: NI rate | D7: 0.138
C8: Ers Lower limit | D8: 9100 | O8: 1 | P8: Pension Full Salary | Q8: TRUE
C9: Pension Upper Limit | D9: 50270 | P9: Pension variables
C10: Employer Pension % | D10: 0.03 | H10: Direct wages last year were:- | K10: =dirwages -> 20000 | P10: Lower limit | Q10: 6240 | R10: =H19-Q10 -> 13760
P11: Upper limit | Q11: 50270 | R11: =Q12 -> 44030
C12: Hint - if you set the % to zero, you can check the calculations and compare it to on the accounts page before you start the direct costs inserted. | O12: 0 | P12: Max | Q12: =Q11-Q10 -> 44030
E13: =+$O$12/10 -> 0 | F13: % adjustment to salaries (global basis)
D17: Months | E17: salary | F17: increased | G17: £ +/- | H17: salary | I17: Er's NI | J17: No. in | K17: DIRECT
C18: Name/Category | D18: Employed | E18: Exc NI | F18: salary | G18: Adj salary | H18: Exc NI | I18: and Pension | J18: Category | K18: LABOUR | Q18: TRUE | R18: FALSE
D19: 12 | E19: 20000 | F19: =(+E19*$E$13/100)+E19 -> 20000 | G19: 0 | H19: =+F19+G19 -> 20000 | I19: =M19+O19 -> 2104.2 | J19: 1 | K19: =(+H19+I19)*J19 -> 22104.2 | M19: =IF((($H$19*12/$D$19)-$D$8)>0,($H$19*12/$D$19-$D$8)*($D$7)*($D$19/12),0) -> 1504.2 | N19: =H19-$D$9 -> -30270 | O19: =IF($Q$8=TRUE,Q19,R19) -> 600 | Q19: =(H19*D19)/D19*$D$10 -> 600 | R19: =IF(MIN(((H19-$Q$10)/D19)*D19*$D$10,$R$11/12*D19*$D$10)<0,0,MIN(((H19-$Q$10)/D19)*D19*$D$10,$R$11/12*D19*$D$10)) -> 412.8
D20: 12 | F20: 0 | H20: 0 | I20: =M20+O20 -> 0 | J20: 1 | K20: =(+H20+I20)*J20 -> 0 | M20: =IF((($H20*12/$D20)-$D$8)>0,($H20*12/$D20-$D$8)*($D$7)*($D20/12),0) -> 0 | N20: -50270 | O20: =IF($Q$8=TRUE,Q20,R20) -> 0 | Q20: =(H20*D20)/D20*$D$10 -> 0 | R20: =IF(MIN(((H20-$Q$10)/D20)*D20*$D$10,$R$11/12*D20*$D$10)<0,0,MIN(((H20-$Q$10)/D20)*D20*$D$10,$R$11/12*D20*$D$10)) -> 0
D21: 12 | F21: 0 | H21: 0 | I21: 0 | J21: 1 | K21: 0 | M21: 0 | N21: -50270 | O21: 0 | Q21: 0 | R21: 0
D22: 12 | F22: 0 | H22: 0 | I22: 0 | J22: 1 | K22: 0 | M22: 0 | N22: -50270 | O22: 0 | Q22: 0 | R22: 0
D23: 12 | F23: 0 | H23: 0 | I23: 0 | J23: 1 | K23: 0 | M23: 0 | N23: -50270 | O23: 0 | Q23: 0 | R23: 0
D24: 12 | F24: 0 | H24: 0 | I24: 0 | J24: 1 | K24: 0 | M24: 0 | N24: -50270 | O24: 0 | Q24: 0 | R24: 0
D25: 12 | F25: 0 | H25: 0 | I25: 0 | J25: 1 | K25: 0 | M25: 0 | N25: -50270 | O25: 0 | Q25: 0 | R25: 0
C26: EMPLOYEE CHANGES IN PROJECTED YEAR (Below) | G26: Subtotal | H26: =SUM(H19:H25) -> 20000 | I26: =SUM(I19:I25) -> 2104.2 | K26: =SUM(K19:K25) -> 22104.2
D27: 12 | F27: =(+E27*$E$13/100)+E27 -> 0 | H27: 0 | I27: =M27+O27 -> 0 | J27: 1 | K27: 0 | M27: =IF((($H27*12/$D27)-$D$8)>0,($H27*12/$D27-$D$8)*($D$7)*($D27/12),IF((($H27*12/$D27)+$D$8)<0,($H27*12/$D27+$D$8)*($D$7)*($D27/12),0)) -> 0 | N27: =H27-$D$9 -> -50270 | O27: 0 | Q27: =(H27*D27)/D27*$D$10 -> 0 | R27: =IF(MIN(((H27-$Q$10)/D27)*D27*$D$10,$R$11/12*D27*$D$10)<0,0,MIN(((H27-$Q$10)/D27)*D27*$D$10,$R$11/12*D27*$D$10)) -> 0
D28: 12 | E28: 0 | F28: =(+E28*$E$13/100)+E28 -> 0 | H28: 0 | I28: =M28+O28 -> 0 | J28: 1 | K28: 0 | M28: =IF((($H28*12/$D28)-$D$8)>0,($H28*12/$D28-$D$8)*($D$7)*($D28/12),0) -> 0 | N28: =H28-$D$9 -> -50270 | O28: 0 | Q28: 0 | R28: 0
D29: 12 | F29: =(+E29*$E$13/100)+E29 -> 0 | H29: 0 | I29: =M29+O29 -> 0 | J29: 1 | K29: 0 | M29: =IF((($H29*12/$D29)-$D$8)>0,($H29*12/$D29-$D$8)*($D$7)*($D29/12),0) -> 0 | N29: =H29-$D$9 -> -50270 | O29: 0 | Q29: 0 | R29: 0
D30: 12 | F30: =(+E30*$E$13/100)+E30 -> 0 | H30: 0 | I30: =M30+O30 -> 0 | J30: 1 | K30: 0 | M30: =IF((($H30*12/$D30)-$D$8)>0,($H30*12/$D30-$D$8)*($D$7)*($D30/12),0) -> 0 | N30: =H30-$D$9 -> -50270 | O30: 0 | Q30: 0 | R30: 0
E31: =SUM(E19:E30) -> 20000 | F31: =SUM(F19:F30) -> 20000 | G31: =SUM(G19:G30) -> 0 | H31: =SUM(H26,H27:H30) -> 20000 | I31: =SUM(I26,I27:I30) -> 2104.2 | K31: =SUM(K26,K27:K30) -> 22104.2
C34: Stage 2 - Calculation of potential chargeable units, potential income & average charge rate
C37: Name/Category | E37: =IF(LEFT(driver3,3)="bed","Beds available",IF(LEFT(driver3,3)="cov","Max Covers","Weeks Worked")) -> Weeks Worked | F37: =IF(LEFT(driver3,3)="bed","Weeks Open",IF(LEFT(driver3,3)="sal","Sales /Week",IF(LEFT(driver3,3)="cov","Weeks Open",IF(LEFT(driver3,3)="Oth","Units/Week","Hours /Week")))) -> Sales /Week | H37: =IF(LEFT(driver3,3)="bed","Bed Nights",IF(LEFT(driver3,3)="sal","Total Sales",IF(LEFT(driver3,3)="cov","Total Covers",IF(LEFT(driver3,3)="Oth","Total Units","Total Hours")))) -> Total Sales | I37: =IF(LEFT(driver3,3)="bed","Bed Rate",IF(LEFT(driver3,3)="sal","Average Sale",IF(LEFT(driver3,3)="cov","Price per Cover","Charge Rate"))) -> Average Sale | J37: Number in category | K37: Potential Revenue
H38: =IF(LEFT(driver3,3)="bed",+F38*E38*nightsopen,+F38*E38*J38) -> 0 | J38: =IF(LEFT(driver3,3)="bed",1,IF(LEFT(driver3,3)="cov",1,+J19)) -> 1 | K38: =+H38*I38 -> 0
H39: =IF(LEFT(driver3,3)="bed",+F39*E39*nightsopen,+F39*E39*J39) -> 0 | J39: =IF(LEFT(driver3,3)="bed",1,IF(LEFT(driver3,3)="cov",1,+J20)) -> 1 | K39: 0 | N39: =IF($E$39>0,$F$38,0) -> 0
C40: =IF(LEFT(driver3,3)="bed","",IF(LEFT(driver3,3)="cov","",+C21)) -> 0 | H40: 0 | J40: 1 | K40: 0 | N40: =IF($E$40>0,$F39,0) -> 0
E41: 0 | F41: =IF($E41>0,$F$38,0) -> 0 | H41: 0 | J41: 1 | K41: 0 | N41: =IF($E$40>0,$F40,0) -> 0
C42: 0 | E42: 0 | F42: =IF($E42>0,$F$38,0) -> 0 | H42: 0 | J42: 1 | K42: 0 | N42: =IF($E$40>0,$F41,0) -> 0
E43: 0 | F43: =IF($E43>0,$F$38,0) -> 0 | H43: 0 | J43: 1 | K43: 0 | N43: =IF($E$40>0,$F42,0) -> 0
C44: 0 | E44: 0 | F44: =IF($E44>0,$F$38,0) -> 0 | H44: 0 | J44: 1 | K44: 0 | N44: =IF($E$40>0,$F43,0) -> 0
C45: EMPLOYEE CHANGES IN PROJECTED YEAR (Below) | G45: Subtotal | H45: =SUM(H38:H44) -> 0 | K45: =SUM(K38:K44) -> 0
C46: =IF(LEFT(driver3,3)="bed","",IF(LEFT(driver3,3)="cov","",+C27)) ->  | E46: 0 | F46: 0 | H46: 0 | I46: 0 | J46: =IF(LEFT(driver3,3)="bed",1,IF(LEFT(driver3,3)="cov",1,+J27)) -> 1 | K46: 0 | N46: =IF($E$46>0,$F$45,0) -> 0
C47: =IF(LEFT(driver3,3)="bed","",IF(LEFT(driver3,3)="cov","",+C28)) ->  | F47: =IF($E$47>0,$F$46,0) -> 0 | H47: 0 | J47: =IF(LEFT(driver3,3)="bed",1,IF(LEFT(driver3,3)="cov",1,+J28)) -> 1 | K47: 0 | N47: =IF($E$47>0,$F$46,0) -> 0
C48: =IF(LEFT(driver3,3)="bed","",IF(LEFT(driver3,3)="cov","",+C29)) ->  | F48: =IF($E$48>0,$F$47,0) -> 0 | H48: 0 | J48: =IF(LEFT(driver3,3)="bed",1,IF(LEFT(driver3,3)="cov",1,+J29)) -> 1 | K48: 0 | N48: =IF($E$48>0,$F$47,0) -> 0
C49: =IF(LEFT(driver3,3)="bed","",IF(LEFT(driver3,3)="cov","",+C30)) ->  | F49: =IF($E$49>0,$F$48,0) -> 0 | H49: 0 | J49: =IF(LEFT(driver3,3)="bed",1,IF(LEFT(driver3,3)="cov",1,+J30)) -> 1 | K49: 0 | N49: =IF($E$49>0,$F$48,0) -> 0
H50: =SUM(H45:H49) -> 0 | K50: =SUM(K45:K49) -> 0
G52: Average Charge Rate | I52: =IF(ISERR($K$45/$H$45),"-",($K$45/$H$45)) -> - | J52: Pre Staff Adjustment
G53: Calculated | I53: =IF(ISERR($K$50/$H$50),"-",($K$50/$H$50)) -> - | J53: Post Staff Adjustment

Sheet PreAdj
I1: Business Analyst
C4: Summary of where the business is now
C6: Key Performance Indicators
E8: CURRENT POSITION | G8: REVISED STARTING FIGURES
E9: £ | F9: As a % of Revenue | G9: % change | H9: £
L10: 50
C11: Gross Revenue | E11: =Sales -> 100000 | G11: =+L10/100 -> 0.5 | H11: =+E11*G11*100/100 -> 50000
C12: Direct Costs | E12: =dircosts -> 20000 | F12: =IF(ISERR(+dircosts*100/Sales)," ",(+dircosts*100/Sales)) -> 20 | H12: =IF(ISERR(+H11*F12%),,(+H11*F12%)) -> 10000
C13: Direct Wages | E13: =dirwages -> 20000 | F13: =IF(ISERR(+dirwages*100/Sales)," ",(+dirwages*100/Sales)) -> 20 | H13: =dirwages -> 20000
C14: Gross Profit | E14: =+E11-E12-E13 -> 60000 | F14: =IF(ISERR(+E14*100/Sales)," ",(+E14*100/Sales)) -> 60 | H14: =+H11-H12-H13 -> 20000
C15: Expenses | E15: =expenses -> 40000 | F15: =IF(ISERR(+expenses*100/Sales)," ",(+expenses*100/Sales)) -> 40 | H15: =expenses -> 40000
C16: Depreciation | E16: =depreciation -> 0 | F16: =IF(ISERR(+depreciation*100/Sales)," ",(+depreciation*100/Sales)) -> 0 | H16: =depreciation -> 0 | L16: 120
C17: Other income | E17: =otherinc -> 0 | H17: =otherinc -> 0
C18: Net Profit | E18: =net_profit -> 20000 | F18: =IF(ISERR(+net_profit*100/Sales)," ",(+net_profit*100/Sales)) -> 20 | H18: =H14-H15-H16+H17 -> -20000
C20: Mark up on Materials % | E20: =mat_markup -> 20 | H20: =mat_markup -> 20
C21: Profit on Materials | E21: =IF(ISERR(dircosts*(mat_markup/100)),"",((dircosts*(mat_markup/100)))) -> 4000 | H21: =IF(ISERR(dircosts3*(mat_markup/100)),"",((dircosts3*(mat_markup/100)))) -> 2000
C22: Sales - Materials - Profit | E22: =IF(ISERR(Sales-dircosts-profit_on_materials),"",((Sales-dircosts-profit_on_materials))) -> 76000 | H22: =IF(ISERR(sales3-dircosts3-profit_on_materials2),"",((sales3-dircosts3-profit_on_materials2))) -> 38000
C23: =IF(LEFT(driver3,3)="sal","Potential Maximum Sales",IF(LEFT(driver3,3)="bed","Potential Maximum Bed Nights",IF(LEFT(driver3,3)="cov","Potential Maximum Covers",IF(LEFT(driver3,3)="Oth","Potential Maximum Units","Potential Maximum Hours")))) -> Potential Maximum Sales | E23: =pot_hours_preadj -> 0 | H23: =pot_hours_preadj -> 0
C24: =IF(LEFT(driver3,3)="sal","Calculated Sales Achieved",IF(LEFT(driver3,3)="bed","Calculated Bed Nights Achieved",IF(LEFT(driver3,3)="cov","Calculated Covers Achieved",IF(LEFT(driver3,3)="Oth","Calculated units achieved","Calculated Hours Achieved")))) -> Calculated Sales Achieved | E24: =IF(ISERR(IF(LEFT(driver3,3)="Hou",(+sales_materials_profit_on_materials/ave_charge_rate),(Sales/ave_charge_rate))),"",(IF(LEFT(driver3,3)="Hou",(+sales_materials_profit_on_materials/ave_charge_rate),(Sales/ave_charge_rate)))) ->  | H24: =IF(ISERR(IF(LEFT(driver3,3)="Hou",(+sales_materials_profit_on_materials2/ave_charge_rate),(sales3/ave_charge_rate))),"",(IF(LEFT(driver3,3)="Hou",(+sales_materials_profit_on_materials2/ave_charge_rate),(sales3/ave_charge_rate)))) -> 
C25: Actual as a % of Potential | E25: =IF(ISERR(+E24*100/E23),"",(+E24*100/E23)) ->  | H25: =IF(ISERR(+H24*100/H23),"",(+H24*100/H23)) -> 
C26: =IF(LEFT(driver3,3)="bed","Average Bed Rate",IF(LEFT(driver3,3)="cov","Average Price / Cover","Average Charge Rate")) -> Average Charge Rate | E26: =ave_charge_rate -> - | H26: =ave_charge_rate -> -
C34: =IF(E24>E23,"WARNING-Actual hours greater than Potential hours - check figures"," ") -> WARNING-Actual hours greater than Potential hours - check figures

Sheet What if
CC1: Business Analyst
C4: Maximising your profit
C6: Target Profit | F6: =target_profit -> 85000 | J6: Projected Profit | L6: =Final_Profit -> -22104.2
C7: =Name -> ABC Limited
C9: Let us first set some criteria to be used for the spinners:
S10: Step 1 | T10: Step 2 | U10: Step 3 | V10: Step 4
H11: Reset figures to spinner % | Q11: 2 | S11: 0 | T11: 0 | U11: 0 | V11: 0
S12: 1 | T12: 1 | U12: 1 | V12: 1
S13: 2 | T13: 2 | U13: 2 | V13: 2
S14: 3 | T14: 3 | U14: 3 | V14: 3
S15: 4 | T15: 4 | U15: 4 | V15: 4
C16: Let us now flex the figures and see what effect changes have on our results. Firstly we need to decide where we want to be and select a target profit. From the accounts page, we know last year's result and we therefore now see how we can try to achieve our target. | S16: 5 | T16: 5 | U16: 5 | V16: 5
S17: 6 | T17: 6 | U17: 6 | V17: 6
S18: 7 | T18: 7 | U18: 7 | V18: 7
S19: 8 | T19: 8 | U19: 8 | V19: 8
C21: Where do you want to be? | S21: 9 | T21: 9 | U21: 9 | V21: 9
S22: 10 | T22: 10 | U22: 10 | V22: 10
D23: Sales | E23: Mark up on Materials | F23: Direct Costs | G23: Materials Sales | H23: Sales Exc Materials | I23: % | J23: Charge Rate | K23: Units | L23: Direct cost/unit | M23: "PROFIT" | CB23: Enter % to override spinners
D24: A | E24: B | F24: C | G24: D | H24: E=A-D | J24: F | K24: G | L24: H=C/G | M24: I=A-C | Q24: 500 | S24: 1 | T24: 1 | U24: 1 | V24: 1
C25: Where are you now? | D25: =sales3 -> 50000 | E25: =mat_markup -> 20 | F25: =dircosts3 -> 10000 | G25: =IF(ISERR(+dircosts3+(dircosts3*mat_markup/100)),"",+dircosts3+(dircosts3*mat_markup/100)) -> 12000 | H25: =IF(ISERR(+sales3-mat_sales),"",(+sales3-mat_sales)) -> 38000 | J25: =ave_charge_rate -> - | K25: =hours_achieved2 ->  | L25: =IF(ISERR(dircosts3/hours_achieved2)," ",(dircosts3/hours_achieved2)) ->  | M25: =sales3-dircosts3 -> 40000 | S25: =+S24-1 -> 0 | T25: =+T24-1 -> 0 | U25: =+U24-1 -> 0 | V25: =+V24-1 -> 0
C27: Effect of staff | D27: =IF(ISERR((K27*J27)+G27),,((K27*J27)+G27)) -> 0 | E27: =mat_markup -> 20 | F27: =IF(ISERR(+K27*L25),,(+K27*L25)) -> 0 | G27: =IF(ISERR(+F27*E27/100+F27),,((+F27*E27)/100+F27)) -> 0 | H27: =IF(ISERR(+D27-G27),,(+D27-G27)) -> 0 | J27: =(IF(ISERR((potrevenue-pot_rev_preadj)/(pot_hours-pot_hours_preadj)),,(potrevenue-pot_rev_preadj)/(pot_hours-pot_hours_preadj))) -> 0 | K27: =IF(ISERR((pot_hours-pot_hours_preadj)*(hourscharged1/100)+R27+Q27),,(pot_hours-pot_hours_preadj)*(hourscharged1/100)+R27+Q27) -> 0 | M27: =sales2-dircosts2 -> 0 | Q27: 15000 | R27: -15000
C28: adjustments
C29: Revised | D29: =SUM(D17:D28) -> 50000 | E29: =mat_markup -> 20 | F29: =SUM(F17:F28) -> 10000 | G29: =SUM(G17:G28) -> 12000 | H29: =SUM(H17:H28) -> 38000 | J29: =ave_charge_rate2 -> - | K29: =SUM(K17:K28) -> 0 | L29: =SUM(L17:L28) -> 0 | M29: =SUM(M17:M28) -> 40000 | O29: 500
O30: 500
C31: Step 1 - Adjust Charge Rate (No effect on direct costs) | Q31: 500
I32: =IF(Q11=1,+S25+(+Q32+R32)/100,+S25+(+Q32+R32)/10) -> 0 | Q32: 500 | R32: -500
Q33: 100
C34: Movement | D34: =IF(ISERR(+$K$29*$J$34),"",(+$K$29*$J$34)) ->  | H34: =IF(ISERR(+$K$29*$J$34),"",(+$K$29*$J$34)) ->  | J34: =IF(CB34<>0,CB34,IF(ISERR(+J29*I32/100),"",+J29*I32/100)) ->  | M34: =+D34 ->  | Q34: 500
C36: Revised | D36: =SUM(D29:D35) -> 50000 | E36: =SUM(E29:E35) -> 20 | F36: =SUM(F29:F35) -> 10000 | G36: =SUM(G29:G35) -> 12000 | H36: =SUM(H29:H35) -> 38000 | J36: =SUM(J29:J35) -> 0 | K36: =SUM(K29:K35) -> 0 | L36: =SUM(L29:L35) -> 0 | M36: =SUM(M29:M35) -> 40000 | O36: 500
O37: 500 | Q37: 500
C38: Step 2 - Adjust Productive Units (Assumes direct costs increase in proportion)
F39: 0 | I39: =IF(Q11=1,+T25+(+Q39+R39)/100,+T25+(+Q39+R39)/10) -> 0 | Q39: 500 | R39: -500
C40: Movement | D40: =+K40*J36+G40 -> 0 | F40: =+K40*L36 -> 0 | G40: =IF(driver2=1,(+F40+(F40*E36/100)),0) -> 0 | H40: =+D40-G40 -> 0 | K40: =IF(CB40<>0,CB40,+K36*I39/100) -> 0 | M40: =+D40-F40 -> 0 | Q40: 500 | CB40: 0
Q41: 50
C42: Revised | D42: =SUM(D36:D41) -> 50000 | E42: =SUM(E36:E41) -> 20 | F42: 10000 | G42: 12000 | H42: 38000 | J42: 0 | K42: 0 | L42: 0 | M42: =SUM(M36:M41) -> 40000 | O42: 500
O43: 500 | Q43: 500
C44: Step 3 - Flex Materials Mark up %
I45: =IF(Q11=1,+U25+(+Q45+R45)/100,+U25+(+Q45+R45)/10) -> 0 | Q45: 500 | R45: -500
C46: Movement | D46: =+G46 -> 0 | E46: =IF(CB46<>0,CB46,+E42*I45/100) -> 0 | G46: =+F42*E46/100 -> 0 | M46: =+G46 -> 0 | Q46: 500 | CB46: 0
F47: 0
C48: Revised | D48: =SUM(D42:D47) -> 50000 | E48: =SUM(E42:E47) -> 20 | F48: 10000 | G48: 12000 | H48: 38000 | J48: 0 | K48: 0 | L48: 0 | M48: 40000 | O48: 500 | T48: 0
O49: 500
C50: Step 4 - Adjust cost of Materials
C51: =+T48/100 -> 0 | I51: =IF($Q$11=1,+$V$25+(+Q51+R51)/100+Q53,+$V$25+(+Q51+R51)/10+Q53) -> 0 | Q51: 500 | R51: -500
C52: Movement | D52: =+$G$52 -> 0 | F52: =IF(CB52<>0,CB52,+F48*I51/100) -> 0 | G52: =((+F52*E54/100)+F52)*C51 -> 0 | L52: =IF(ISERR(+F52/K48),"",+F52/K48) ->  | M52: =+G52-F52 -> 0 | CB52: 0
Q53: =Expenses!$G$26 -> 0
C54: Revised | D54: =SUM(D48:D53) -> 50000 | E54: =SUM(E48:E53) -> 20 | F54: =SUM(F48:F53) -> 10000 | G54: =SUM(G48:G53) -> 12000 | H54: =SUM(H48:H53) -> 38000 | J54: =SUM(J48:J53) -> 0 | K54: =SUM(K48:K53) -> 0 | L54: =SUM(L48:L53) -> 0 | M54: =SUM(M48:M53) -> 40000
C56: Step 5 - "Value"/"Extra" Pricing
C57: Movement | D57: =IF(CB57<>0,CB57,+Q59) -> 0 | M57: =+D57 -> 0 | CB57: 0
C59: Revised | D59: =SUM(D53:D58) -> 50000 | E59: =SUM(E53:E58) -> 20 | F59: =SUM(F54:F58) -> 10000 | G59: =SUM(G54:G58) -> 12000 | H59: =SUM(H54:H58) -> 38000 | J59: =SUM(J53:J58) -> 0 | K59: =SUM(K53:K58) -> 0 | L59: =SUM(L53:L58) -> 0 | M59: =SUM(M54:M58) -> 40000 | Q59: 0
D61: Sales | E61: Direct costs | F61: Direct Wages | G61: Expenses | H61: Depreci- ation | J61: Profit | K61: Other income | L61: Final Profit
C62: SUMMARY | D62: =+D59 -> 50000 | E62: =+F54 -> 10000 | F62: =proj_labour -> 22104.2 | G62: =forecastexpenses -> 40000 | H62: =forecastdepreciation -> 0 | J62: =whatif_sales-what_if_dircosts-proj_labour-forecastexpenses-forecastdepreciation -> -22104.2 | K62: =proj_otherinc -> 0 | L62: =J62+K62 -> -22104.2
J64: Target Profit | L64: =target_profit -> 85000

Sheet Projsumm
K1: Business Analyst
C5: Potential Profit - Where do you want to be
E7: CURRENT POSITION | G7: POTENTIAL | I7: MOVEMENT
E8: £ | F8: As a % of Revenue | G8: £ | H8: As a % of Revenue | I8: £ | J8: % Movement
C9: Gross Revenue | E9: =sales3 -> 50000 | G9: =whatif_sales -> 50000 | I9: =+whatif_sales-sales3 -> 0 | J9: =IF(ISERR(+I9/E9),"",(+I9/E9)) -> 0
C10: Direct Costs | E10: =dircosts3 -> 10000 | F10: =IF(ISERR(+E10*100/sales3),"",(+E10*100/sales3)) -> 20 | G10: =what_if_dircosts -> 10000 | H10: =IF(ISERR(+G10*100/whatif_sales),"",(+G10*100/whatif_sales)) -> 20 | I10: =what_if_dircosts-dircosts3 -> 0 | J10: 0
C11: Direct Wages | E11: =dirwages -> 20000 | F11: =IF(ISERR(+E11*100/sales3),"",(+E11*100/sales3)) -> 40 | G11: =proj_labour -> 22104.2 | H11: =IF(ISERR(+G11*100/whatif_sales),"",(+G11*100/whatif_sales)) -> 44.2084 | I11: =proj_labour-dirwages -> 2104.2 | J11: 0.10521
C12: Gross Profit | E12: =+E9-E10-E11 -> 20000 | F12: =IF(ISERR(+E12*100/sales3),"",(+E12*100/sales3)) -> 40 | G12: =+G9-G10-G11 -> 17895.8 | H12: =IF(ISERR(+G12*100/whatif_sales),"",(+G12*100/whatif_sales)) -> 35.7916 | I12: =+G12-E12 -> -2104.2 | J12: -0.10521
C13: Expenses | E13: =expenses -> 40000 | F13: =IF(ISERR(+E13*100/sales3),"",(+E13*100/sales3)) -> 80 | G13: =forecastexpenses -> 40000 | H13: =IF(ISERR(+G13*100/whatif_sales),"",(+G13*100/whatif_sales)) -> 80 | I13: =forecastexpenses-expenses -> 0 | J13: 0
C14: Depreciation | E14: =depreciation -> 0 | F14: =IF(ISERR(+E14*100/sales3),"",(+E14*100/sales3)) -> 0 | G14: =forecastdepreciation -> 0 | H14: =IF(ISERR(+G14*100/whatif_sales),"",(+G14*100/whatif_sales)) -> 0 | I14: =forecastdepreciation-depreciation -> 0
C15: Other income | E15: =otherinc -> 0 | G15: =proj_otherinc -> 0 | I15: =proj_otherinc-otherinc -> 0
C16: Net Profit | E16: =E12-E13-E14+E15 -> -20000 | F16: =IF(ISERR(+E16*100/sales3),"",(+E16*100/sales3)) -> -40 | G16: =+G12-G13-G14+G15 -> -22104.2 | H16: =IF(ISERR(+G16*100/whatif_sales),"",(+G16*100/whatif_sales)) -> -44.2084 | I16: =+G16-E16 -> -2104.2 | J16: 0.10521
C18: Mark up on Materials | E18: =mat_markup -> 20 | G18: =proj_mat_markup -> 20 | I18: =IF(ISERR(+G18-E18),"",(+G18-E18)) -> 0 | J18: =IF(ISERR(+I18/E18),"",(+I18/E18)) -> 0
C19: Profit on Materials | E19: =profit_on_materials -> 4000 | G19: =what_if_dircosts*(proj_mat_markup/100) -> 2000 | I19: =IF(ISERR(+G19-E19),"",(+G19-E19)) -> -2000 | J19: =IF(ISERR(+I19/E19),"",(+I19/E19)) -> -0.5
C20: Sales - Materials - Profit | E20: =IF(ISERR(Sales-dircosts-profit_on_materials),"",(Sales-dircosts-profit_on_materials)) -> 76000 | G20: =+G9-G10-G19 -> 38000 | I20: =IF(ISERR(+G20-E20),"",(+G20-E20)) -> -38000 | J20: =IF(ISERR(+I20/E20),"",(+I20/E20)) -> -0.5
C21: =IF(LEFT(driver3,3)="sal","Potential Maximum Sales",IF(LEFT(driver3,3)="bed","Potential Maximum Bed Nights",IF(LEFT(driver3,3)="cov","Potential Maximum Covers",IF(LEFT(driver3,3)="oth","Potential Maximum Units","Potential Maximum Hours")))) -> Potential Maximum Sales | E21: =pot_hours_preadj -> 0 | G21: =pot_hours -> 0
C22: =IF(LEFT(driver3,3)="sal","Actual Sales Achieved",IF(LEFT(driver3,3)="bed","Actual Bed Nights Achieved",IF(LEFT(driver3,3)="cov","Actual Covers Achieved",IF(LEFT(driver3,3)="oth","Actual Units Achieved","Actual Hours Achieved")))) -> Actual Sales Achieved | E22: =hours_achieved2 ->  | G22: =proj_units -> 0 | I22: =IF(ISERR(+G22-E22),"",(+G22-E22)) ->  | J22: =IF(ISERR(+I22/E22),"",(+I22/E22)) -> 
C23: Actual as a % of Potential | E23: =IF(ISERR(+E22/E21),"",(+E22/E21)) ->  | G23: =IF(ISERR(+G22/G21),"",(+G22/G21)) ->  | I23: =IF(ISERR((+G23-E23)*100),"",((+G23-E23)*100)) ->  | J23: =IF(ISERR((+I23/100)/E23),"",((+I23/100)/E23)) -> 
C24: =IF(LEFT(driver3,3)="bed","Average Bed Rate",IF(LEFT(driver3,3)="cov","Average Price / Cover","Average Charge Rate")) -> Average Charge Rate | E24: =ave_charge_rate -> - | G24: =proj_ave_charge_rate -> 0 | I24: =IF(ISERR(+G24-E24),"",(+G24-E24)) ->  | J24: =IF(ISERR(+I24/E24),"",(+I24/E24)) -> 

Sheet altview
L1: Business Analyst
C4: =driver2 -> 5
C5: Making even more profit - What if scenarios
C9: Lets look at the business in a different way
C13: Enter number of weeks open | F13: 52
C14: Enter no of months open | F14: 12
H16: Weekly | I16: Monthly
C17: Turnover (from accounts) £ | F17: =Sales -> 100000 | H17: =IF(ISERR(Sales/F13),"",(Sales/F13)) -> 1923.076923 | I17: =IF(ISERR(Sales/F14),"",(Sales/F14)) -> 8333.333333
C18: Number of customers | F18: 550 | H18: =IF(ISERR(custno/weeksopen)," ",(custno/weeksopen)) -> 10.57692308 | I18: =IF(ISERR(custno/months_open)," ",(custno/months_open)) -> 45.83333333
C19: Number of transactions per customer | F19: 2 | H19: =IF(ISERR(transno/weeksopen),"",(transno/weeksopen)) -> 0.03846153846 | I19: =IF(ISERR(transno/months_open),"",(transno/months_open)) -> 0.1666666667
C20: Average Spend £ | F20: =IF(ISERR(Sales/(custno*transno))," ",(Sales/(custno*transno))) -> 90.90909091 | H20: =IF(ISERR(Sales/(custno*transno))," ",(Sales/(custno*transno))) -> 90.90909091 | I20: =IF(ISERR(Sales/(custno*transno))," ",(Sales/(custno*transno))) -> 90.90909091
C23: From our previous calculations we calculate that we need to achieve sales of:- | J23: =IF(ISERR(whatif_sales)," ",(whatif_sales)) -> 50000
C27: Lets see the effect of changing some of the above numbers
C28: Note that the Average Spend may be totally profit if it is an increase in price, or it may result in an increase in cost of sales as well. Click the button below to choose either / or.
P30: 1
F34: Original | I34: Revised | J34: % increase
C35: Number of customers | F35: =custno -> 550 | H35: =(+M35+N35) -> 4 | I35: =custno+H35 -> 554 | J35: =IF(ISERR(+H35*100/custno),"",(+H35*100/custno)) -> 0.7272727273 | M35: 104 | N35: -100
C36: Number of transactions | F36: =transno -> 2 | H36: =(+M36+N36)/10 -> 0 | I36: =transno+H36 -> 2 | J36: =IF(ISERR(+H36*100/transno),"",(+H36*100/transno)) -> 0 | M36: 100 | N36: -100
C37: Average spend | F37: =spend -> 90.90909091 | H37: =(+M37+N37)/10 -> 11 | I37: =IF(ISERR(spend+H37),"",(spend+H37)) -> 101.9090909 | J37: =IF(ISERR(+H37*100/spend),"",(+H37*100/spend)) -> 12.1 | M37: 210 | N37: -100
C39: What effect does this have on profit? | J39: Movement
C40: Turnover | F40: =IF(ISERR(custno*transno*spend),"",(custno*transno*spend)) -> 100000 | I40: =IF(ISERR(revcustno*revtransno*rev_spend),"",(revcustno*revtransno*rev_spend)) -> 112915.2727 | J40: =IF(ISERR(altrevturnover-altturnover),"",(altrevturnover-altturnover)) -> 12915.27273
C41: Profit | F41: =net_profit -> 20000 | I41: =IF(ISERR(adj_profit),"",(adj_profit)) -> 28228.01818 | J41: =IF(ISERR(adj_profit-net_profit),"",(adj_profit-net_profit)) -> 8228.018182
C45: Revised Profit
C47: Original Turnover | F47: =Sales -> 100000
C48: Increase in Turnover | F48: =IF(ISERR(altrevturnover-Sales),"",(altrevturnover-Sales)) -> 12915.27273
C49: Revised Turnover | F49: =SUM(F47:F48) -> 112915.2727
C51: Cost of Materials | F51: =dircosts -> 20000
C52: Increased cost of materials | F52: =IF(P30=2,"",(addl_mats)) -> 2583.054545
C54: Direct wages | F54: =proj_labour -> 22104.2
F55: =IF(ISERR(SUM(G49:G55)),"",SUM(G49:G55)) -> 0
C56: Gross Margin | F56: =IF(ISERR(+F49-F51-F52-F54-F55),"",(+F49-F51-F52-F54-F55)) -> 68228.01818 | I56: =IF(ISERR((+F56*100)/H58),"",((+F56*100)/H58)) -> 
C58: Expenses | F58: =forecastexpenses -> 40000
C59: Depreciation | F59: =forecastdepreciation -> 0
C60: Other income | F60: =proj_otherinc -> 0
C61: Total | F61: =F58+F59-F60 -> 40000
C62: Adjusted Profit | F62: =IF(ISERR(+F56-F61),"",(+F56-F61)) -> 28228.01818
C65: Working sheet to calculate cost of materials as a result of increased sales
C67: Increased turnover inc direct costs | F67: =increase_turnover -> 12915.27273
C68: Original % of cost of sales to sales | F68: =IF(ISERR(dircosts*100/Sales),"",(dircosts/Sales)*100) -> 20
C69: Therefore additional cost of materials | F69: =IF(ISERR(+F67*F68/100),"",(+F67*F68/100)) -> 2583.054545

Sheet graphs
L1: Business Analyst
C5: These graphs are based on the scenarios set in the report labelled 'Potential Profit - Where do you want to be'

Sheet graphs(2)
L1: Business Analyst
C5: These graphs are based on the scenarios set in the report labelled 'Making even more profit - what if scenarios'

Sheet graphs (3)
A3: Existing Profit | B3: =Projsumm!E16 -> -20000
A4: Projected Profit | B4: ='What if'!L6 -> -22104.2
A8: =Projsumm!C23 -> Actual as a % of Potential | B8: =Projsumm!G23 -> 
B9: =Projsumm!I23 -> 
C10: Current | E10: Expected
A11: =Projsumm!C10 -> Direct Costs | C11: =Projsumm!E10 -> 10000 | E11: =Projsumm!G10 -> 10000
A13: =Projsumm!C11 -> Direct Wages | C13: =Projsumm!E11 -> 20000 | E13: =Projsumm!G11 -> 22104.2
A15: =Projsumm!C13 -> Expenses | C15: =Projsumm!E13 -> 40000 | E15: =Projsumm!G13 -> 40000
A17: =Projsumm!C14 -> Depreciation | C17: =Projsumm!E14 -> 0 | E17: =Projsumm!G14 -> 0

Sheet Tools
K1: Business Analyst
B5: These tools can be used to illustrate certain basic principles in business.
B6: These are: | AA6: DETAILED EXAMPLE | AH6: Spin to
B7: 1) | C7: The effect of a price discounting policy | O7: 7 | AH7: Change:
B8: 2) | C8: The effect of a premium pricing policy | AA8: Sell an item for | AC8: 100 | AH8: Sale Price | AI8: Cost
B9: 3) | C9: The effect on turnover of a price increase and falling sales as a result | AA9: Cost | AC9: 70
B10: 4) | C10: A gross profit % and markup % calculator | AA10: Profit | AC10: =+AC8-AC9 -> 30 | AD10: =AC10*100/AC8 -> 30 | AE10: %
B11: 5) | C11: A more detailed illustration of volume changes required
B12: 6) | C12: The "cost" of not taking advantage of trade discounts | AA12: As a goodwill gesture throw in some extras
AA13: Sell an item for | AC13: =AC8 -> 100 | AH13: Spin to
AA14: Cost | AC14: 74 | AH14: Change Cost
B15: To print a selected illustration, click on the Set Print View button to the right of the scenario, then click on File Print | AA15: Profit | AC15: =+AC13-AC14 -> 26 | AD15: =AC15*100/AC13 -> 26 | AE15: %
AA17: Assuming the same mark up this is effectively a "discount"
AA19: If sold at full price sale would have been | AF19: =AC14*100/(100-AD10) -> 105.7142857 | AG19: a
AA20: Actual sales were | AF20: =AC8 -> 100 | AG20: b
AA21: Reduction in £ | AF21: =AF19-AF20 -> 5.714285714 | AG21: c
AA22: As a % | AF22: =AF21*100/AF19 -> 5.405405405 | AG22: % {c/a)
AA24: In volume terms | AH24: Spin to
AA25: Assume | AB25: 1000 | AC25: units were sold | AH25: Change Volume
B27: PRICE DISCOUNTING POLICY | AA27: Normal selling prices | AD27: =AB25 -> 1000 | AE27: 100 | AF27: =AD27*AE27 -> 100000
AA28: Profit at (%) | AD28: =AD10 -> 30 | AE28: % | AF28: =AF27*AD28/100 -> 30000
B29: The following scenario indicates the increase in sales that are required to compensate for a price discounting policy | O29: 500
B30: For example, if your margin is 40% and you reduce prices by 10%, then you need sales volume to increase by | AA30: How many do we need to sell to make the
B31: 33% to maintain your profit. The gross profit margin is also lower. | O31: 500 | AA31: same amount of money "giving" items away?
O32: 500 | AA32: Sales | AD32: =AF32/AE32 -> 1153.846154 | AE32: =AC8 -> 100 | AF32: =AF28*100/AD15 -> 115384.6154
F33: % to | H33: =(-100+O33)/100 -> -0.1 | I33: Amending figure | O33: 90 | AA33: Profit at (%) | AD33: =AD15 -> 26 | AE33: % | AF33: =AF32*AD33/100 -> 30000
F34: Reduce price
AA35: The PROFIT figures are the same but.....
E36: Original | H36: Revised | J36: Turnover required | O36: 500 | AA36: The increase in volume is | AD36: =AD32-AD27 -> 153.8461538 | AE36: units
C37: Sales | E37: 100000 | H37: =+E37+($E$37*$H$33) -> 90000 | J37: to maintain profit | L37: =IF(ISERR(+L39/K39),"",(+L39/K39)) -> 180000 | AA37: On a weekly basis | AD37: =AD36/52 -> 2.958579882 | AE37: units
O38: 500 | AA38: As a percentage | AD38: =AD36*100/AD27 -> 15.38461538 | AE38: %
B39: Base | C39: Profit % | D39: 0.2 | E39: =+E37*D39 -> 20000 | G39: =+H39/H37 -> 0.1111111111 | H39: =+E39+($E$37*$H$33) -> 10000 | K39: =+G39 -> 0.1111111111 | L39: =+E39 -> 20000 | O39: 500 | BB39: If the full sale price were obtained for the goods -
C41: ="Therefore an increase in sales volume of "&TEXT(L41,"0.00%") -> Therefore an increase in sales volume of 100.00% | L41: =IF(ISERR((+$L$37-$H$37)/$H$37),"",(+$L$37-$H$37)/$H$37) -> 1
C42: would be required to maintain the same gross profit | O42: 500
C43: as before (Based on revised turnover)
O44: 500
O45: 500
O48: 500
O50: 500
B51: PREMIUM PRICING POLICY | O51: 500
B53: The following scenario indicates a premium pricing strategy and this shows the amount by which your sales
B54: would have to decline following a price increase before your gross profit is reduced below its current level. | O54: 0
B55: As an example at 40% gross margin, a 10% increase in price could sustain a 20% decrease in sales volume.
F57: % to | H57: =(+O57)/100 -> 0.1 | I57: Amending figure | O57: 10
F58: Add to price
D60: 0 | E60: Original | H60: Revised | J60: Turnover required
C61: Sales | E61: 100000 | H61: =+E61+(E61*H57) -> 110000 | J61: to maintain profit | L61: =IF(ISERR(+E63/G63),"",(+E63/G63)) -> 82500
B63: Base | C63: Profit % | D63: 0.3 | E63: =+E61*D63 -> 30000 | G63: =+H63/H61 -> 0.3636363636 | H63: =+E63+(E61*H57) -> 40000 | L63: =+E63 -> 30000
L65: =IF(ISERR((+H61-L61)/H61),"",(+H61-L61)/H61) -> 0.25 | AA65: When you should take advantage of a trade discount
C66: ="Therefore a drop in sales volume of "&TEXT(L65,"0.00%") -> Therefore a drop in sales volume of 25.00% | AH66: adjust discount rate
C67: would still result in the same gross profit total | AA67: Discount percentage | AE67: =+AM67/10 -> 2.5 | AF67: % | AM67: 25
C68: but at a higher gross profit margin. | AA68: Days taken to pay suppliers | AE68: 40 | AH68: adjust days to pay
AA69: Days available to take discount | AE69: 30
AH70: adjust disc days
AA71: Effective borrowing rate by | AE71: =AP71*AO71 -> 0.9358974359 | AO71: =$AE$67/(100-$AE$67) -> 0.02564102564 | AP71: =365/($AE$68-$AE$69) -> 36.5
AA72: not taking the discount
AA74: Compare this to the borrowing rate from the bank!
B76: WHAT IF? | AA76: Alternatively
B78: The effect of increasing prices and losing business as a result. | AA78: Borrowing Interest Rate | AE78: =AM79/10 -> 6 | AF78: % | AH78: adjust interest rate
B79: Use the spinners to vary the % changes by 1% each time | AM79: 60
J80: % change | AA80: Discount rate available | AE80: =AM81/10 -> 2.5 | AF80: % | AH80: adjust discount rate
AM81: 25
D82: Units | H82: =IF(reset1=7,5000,proj_units) -> 0 | J82: =+Q82 -> 6 | K82: =+H82*(J82/100)+H82 -> 0 | O82: 46 | P82: 40 | Q82: =+O82-P82 -> 6 | AA82: Unless you can delay payment for more | AE82: =$AQ$82 -> 155.982906 | AO82: =($AE$80)/(100-($AE$80)) -> 0.02564102564 | AP82: =($AE$78/100)/$AO$82 -> 2.34 | AQ82: =365/$AP$82 -> 155.982906
AA83: than this number of days it is better to
D84: Price | H84: =IF(reset1=7,20,proj_ave_charge_rate) -> 0 | J84: =+Q84 -> -6 | K84: =+H84*(J84/100)+H84 -> 0 | O84: 34 | P84: 40 | Q84: =+O84-P84 -> -6 | AA84: borrow money to take advantage of the
AA85: trade discount.
D86: Turnover | H86: =+H82*H84 -> 0 | K86: =+K82*K84 -> 0 | O86: 0
O87: 5000
D88: Cost of Sales | F88: per unit | G88: =IF(reset1=7,10,proj_unitcost) -> 0 | H88: =+H82*G88 -> 0 | J88: =$G$88 -> 0 | K88: =+K82*J88 -> 0 | O88: 20
O89: 10
D90: Gross Profit | H90: =+H86-H88 -> 0 | K90: =+K86-K88 -> 0
D92: Gross Profit % | H92: =+H90/H86 ->  | K92: =+K90/K86 -> 
B100: Mark up and Gross Profit Calculator
B102: Mark up and Gross Profit based on Cost and Retail Prices (Exc VAT if registered)
I103: Markup % | K103: Gross Profit %
B104: Cost | C104: 100 | E104: Retail | G104: 200 | I104: =IF(ISERR((Retail-Cost)/Cost),"",(Retail-Cost)/Cost) -> 1 | K104: =IF(ISERR((Retail-Cost)/Retail),"",(Retail-Cost)/Retail) -> 0.5
B107: Gross Profit based on Mark Up
K108: Gross Profit %
B109: Markup % | C109: 0.4 | K109: =Markuppercent*100/(100+Markuppercent*100) -> 0.2857142857
B112: Mark up calculation based on Gross profit margin
B114: Gross Profit | I114: Markup %
B115: Margin % | C115: 0.2857 | I115: =Marginpercent*100/(100-(Marginpercent*100)) -> 0.3999720006

Sheet 5year
V1: Business Analyst
F4: This is an "additional" optional section. It can be used for more "long term" projections.
E9: CALCULATIONS SECTION
F10: NOTE - the actual numbers are not relevant to the actual business - the % increase/decrease is the relevant factor
F11: The price is also not relevant or related to the business - all we are interested in is % variances
F12: In the output section the results assume:-
F13: That direct costs only vary with the number of units and are based on the % to sales in year 1
F14: That direct labour costs do not vary based on output - use the spinners to increase/decrease direct labour if required
F16: Do you want to use : - figures based on Potential Profit? | N16: based on sample data? | T16: 1
N17: Making even more profit?
F18: Do you want the same % across all years? If so, enter the % | N18: 0 | O18: Otherwise "spin" each year to the required %
M19: % increase | O19: Revised
C20: Assumptions | F20: units | H20: =ROUND(IF(_var1=1,revunits,IF(_var1=2,whatif_sales/1000,revcustno)),0) -> 0 | J20: year2 | M20: =IF(percentall1>0,percentall1,+R20) -> 3 | O20: =ROUND(+H20*M20/100+H20,0) -> 0 | Q20: 1006 | R20: =(+Q20-1000)/2 -> 3
H21: =+O20 -> 0 | J21: year3 | M21: =IF(percentall1>0,percentall1,+R21) -> 0 | O21: =ROUND(+H21*M21/100+H21,0) -> 0 | Q21: 1000 | R21: =(+Q21-1000)/2 -> 0
H22: =+O21 -> 0 | J22: year4 | M22: =IF(percentall1>0,percentall1,+R22) -> 0 | O22: =ROUND(+H22*M22/100+H22,0) -> 0 | Q22: 1000 | R22: =(+Q22-1000)/2 -> 0
H23: =+O22 -> 0 | J23: year5 | M23: =IF(percentall1>0,percentall1,+R23) -> 0 | O23: =ROUND(+H23*M23/100+H23,0) -> 0 | Q23: 1000 | R23: =(+Q23-1000)/2 -> 0
F25: Do you want the same % across all years? If so, enter the % | N25: 0 | O25: Otherwise "spin" each year to the required %
O26: and leave this as 0
F27: price/unit | H27: =ROUND(IF(_var1<=2,whatif_sales/H20,altrevturnover/(revcustno*revtransno)),2) ->  | J27: year2 | M27: =IF(percentall2>0,percentall2,+R27) -> 0 | O27: =ROUND(+H27*M27/100+H27,2) ->  | Q27: 1000 | R27: =(+Q27-1000)/2 -> 0 | T27: =base2*basep2 -> 
H28: =+O27 ->  | J28: year3 | M28: =IF(percentall2>0,percentall2,+R28) -> 0 | O28: =+H28*M28/100+H28 ->  | Q28: 1000 | R28: =(+Q28-1000)/2 -> 0 | T28: =base3*basep3 -> 
H29: =+O28 ->  | J29: year4 | M29: =IF(percentall2>0,percentall2,+R29) -> 0 | O29: =+H29*M29/100+H29 ->  | Q29: 1000 | R29: =(+Q29-1000)/2 -> 0 | T29: =base4*basep4 -> 
H30: =+O29 ->  | J30: year5 | M30: =IF(percentall2>0,percentall2,+R30) -> 0 | O30: =+H30*M30/100+H30 ->  | Q30: 1000 | R30: =(+Q30-1000)/2 -> 0 | T30: =base5*basep6 -> 
F32: Do you want the same % across all years? If so, enter the % | N32: 0 | O32: Otherwise "spin" each year to the required %
F33: direct labour adjustment | O33: and leave this as 0
H34: =ROUND(proj_labour,0) -> 22104 | J34: year2 | M34: =IF(percentall3>0,percentall3,+R34) -> 0 | O34: =ROUND(+H34*M34/100+H34,0) -> 22104 | Q34: 1000 | R34: =(+Q34-1000)/2 -> 0
H35: =+O34 -> 22104 | J35: year3 | M35: =IF(percentall3>0,percentall3,+R35) -> 0 | O35: =+H35*M35/100+H35 -> 22104 | Q35: 1000 | R35: =(+Q35-1000)/2 -> 0
H36: =+O35 -> 22104 | J36: year4 | M36: =IF(percentall3>0,percentall3,+R36) -> 0 | O36: =+H36*M36/100+H36 -> 22104 | Q36: 1000 | R36: =(+Q36-1000)/2 -> 0
H37: =+O36 -> 22104 | J37: year5 | M37: =IF(percentall3>0,percentall3,+R37) -> 0 | O37: =+H37*M37/100+H37 -> 22104 | Q37: 1000 | R37: =(+Q37-1000)/2 -> 0
F39: Do you want the same % across all years? If so, enter the % | N39: 0 | O39: Otherwise "spin" each year to the required %
F40: Expenses adjustment | O40: and leave this as 0
H41: =ROUND(forecastexpenses,0) -> 40000 | J41: year2 | M41: =IF(percentall4>0,percentall4,+R41) -> 0 | O41: =ROUND(+H41*M41/100+H41,0) -> 40000 | Q41: 1000 | R41: =(+Q41-1000)/2 -> 0
H42: =+O41 -> 40000 | J42: year3 | M42: =IF(percentall4>0,percentall4,+R42) -> 0 | O42: =+H42*M42/100+H42 -> 40000 | Q42: 1000 | R42: =(+Q42-1000)/2 -> 0
H43: =+O42 -> 40000 | J43: year4 | M43: =IF(percentall4>0,percentall4,+R43) -> 0 | O43: =+H43*M43/100+H43 -> 40000 | Q43: 1000 | R43: =(+Q43-1000)/2 -> 0
H44: =+O43 -> 40000 | J44: year5 | M44: =IF(percentall4>0,percentall4,+R44) -> 0 | O44: =+H44*M44/100+H44 -> 40000 | Q44: 1000 | R44: =(+Q44-1000)/2 -> 0
F46: Do you want the same % across all years? If so, enter the % | N46: 0 | O46: Otherwise "spin" each year to the required %
F47: Depreciation adjustment | O47: and leave this as 0
H48: =forecastdepreciation -> 0 | J48: year2 | M48: =IF(percentall5>0,percentall5,+R48) -> 0 | O48: =+H48*M48/100+H48 -> 0 | Q48: 1000 | R48: =(+Q48-1000)/2 -> 0
H49: =+O48 -> 0 | J49: year3 | M49: =IF(percentall5>0,percentall5,+R49) -> 0 | O49: =+H49*M49/100+H49 -> 0 | Q49: 1000 | R49: =(+Q49-1000)/2 -> 0
H50: =+O49 -> 0 | J50: year4 | M50: =IF(percentall5>0,percentall5,+R50) -> 0 | O50: =+H50*M50/100+H50 -> 0 | Q50: 1000 | R50: =(+Q50-1000)/2 -> 0
H51: =+O50 -> 0 | J51: year5 | M51: =IF(percentall5>0,percentall5,+R51) -> 0 | O51: =+H51*M51/100+H51 -> 0 | Q51: 1000 | R51: =(+Q51-1000)/2 -> 0
F53: Do you want the same % across all years? If so, enter the % | N53: 0 | O53: Otherwise "spin" each year to the required %
F54: Other income adjustment | O54: and leave this as 0
H55: =proj_otherinc -> 0 | J55: year2 | M55: =IF(percentall6>0,percentall6,+R55) -> 0 | O55: =+H55*M55/100+H55 -> 0 | Q55: 1000 | R55: =(+Q55-1000)/2 -> 0
H56: =+O55 -> 0 | J56: year3 | M56: =IF(percentall6>0,percentall6,+R56) -> 0 | O56: =+H56*M56/100+H56 -> 0 | Q56: 1000 | R56: =(+Q56-1000)/2 -> 0
H57: =+O56 -> 0 | J57: year4 | M57: =IF(percentall6>0,percentall6,+R57) -> 0 | O57: =+H57*M57/100+H57 -> 0 | Q57: 1000 | R57: =(+Q57-1000)/2 -> 0
H58: =+O57 -> 0 | J58: year5 | M58: =IF(percentall6>0,percentall6,+R58) -> 0 | O58: =+H58*M58/100+H58 -> 0 | Q58: 1000 | R58: =(+Q58-1000)/2 -> 0
F60: Information only - Direct Costs Calculation | M60: units | N60: direct cost | O60: cost/unit
J61: year2 | M61: =H20 -> 0 | N61: =what_if_dircosts -> 10000 | O61: =+N61/M61 -> 
N62: cost/unit | O62: total
J63: year3 | M63: =H21 -> 0 | N63: =+O61 ->  | O63: =+M63*N63 -> 
J64: year4 | M64: =H22 -> 0 | N64: =+O61 ->  | O64: =+M64*N64 -> 
J65: year5 | M65: =H23 -> 0 | N65: =+O61 ->  | O65: =+M65*N65 -> 
AB71: =Name -> ABC Limited
F72: REVIEW RESULTS
F73: Does the result look "achievable"?
AD74: Last Year | AH74: Year 1 | AL74: Year 2 | AP74: Year 3 | AT74: Year 4 | AX74: Year 5
F75: =IF(base5>pot_hours,WARNING -Actual M$61:M$65 are greater than potential M$61:M$65,"") -> 
AF76: % | AJ76: % | AN76: % | AR76: % | AV76: % | AZ76: %
AF77: of Rev | AJ77: of Rev | AN77: of Rev | AR77: of Rev | AV77: of Rev | AZ77: of Rev
AB78: Gross Revenue | AD78: =sales3 -> 50000 | AH78: =whatif_sales -> 50000 | AL78: =_rev52 ->  | AP78: =_rev53 ->  | AT78: =_rev54 ->  | AX78: =_rev55 -> 
AB80: Direct Costs | AD80: =dircosts3 -> 10000 | AF80: =IF(ISERR(+AD80*100/sales3),"",(+AD80*100/sales3)) -> 20 | AH80: =what_if_dircosts -> 10000 | AJ80: =IF(ISERR(+AH80*100/whatif_sales),"",(+AH80*100/whatif_sales)) -> 20 | AL80: =_rev52*AJ80/100 ->  | AN80: =+AL80*100/AL78 ->  | AP80: =dircost3 ->  | AR80: =+AP80*100/AP78 ->  | AT80: =dircost4 ->  | AV80: =+AT80*100/AT78 ->  | AX80: =dircost5 ->  | AZ80: =+AX80*100/AX78 -> 
AB82: Direct Wages | AD82: =dirwages -> 20000 | AF82: =IF(ISERR(+AD82*100/sales3),"",(+AD82*100/sales3)) -> 40 | AH82: =proj_labour -> 22104.2 | AJ82: =IF(ISERR(+AH82*100/whatif_sales),"",(+AH82*100/whatif_sales)) -> 44.2084 | AL82: =_dla2 -> 22104 | AN82: =+AL82*100/AL78 ->  | AP82: =_dla3 -> 22104 | AR82: =+AP82*100/AP78 ->  | AT82: =_dla4 -> 22104 | AV82: =+AT82*100/AT78 ->  | AX82: =_dla5 -> 22104 | AZ82: =+AX82*100/AX78 -> 
AB84: Gross Profit | AD84: =+AD78-AD80-AD82 -> 20000 | AF84: =IF(ISERR(+AD84*100/sales3),"",(+AD84*100/sales3)) -> 40 | AH84: =+AH78-AH80-AH82 -> 17895.8 | AJ84: =IF(ISERR(+AH84*100/whatif_sales),"",(+AH84*100/whatif_sales)) -> 35.7916 | AL84: =+AL78-AL80-AL82 ->  | AN84: =+AL84*100/AL78 ->  | AP84: =+AP78-AP80-AP82 ->  | AR84: =+AP84*100/AP78 ->  | AT84: =+AT78-AT80-AT82 ->  | AV84: =+AT84*100/AT78 ->  | AX84: =+AX78-AX80-AX82 ->  | AZ84: =+AX84*100/AX78 -> 
AB86: Expenses | AD86: =expenses -> 40000 | AF86: =IF(ISERR(+AD86*100/sales3),"",(+AD86*100/sales3)) -> 80 | AH86: =forecastexpenses -> 40000 | AJ86: =IF(ISERR(+AH86*100/whatif_sales),"",(+AH86*100/whatif_sales)) -> 80 | AL86: =expadj2 -> 40000 | AN86: =+AL86*100/AL78 ->  | AP86: =expadj3 -> 40000 | AR86: =+AP86*100/AP78 ->  | AT86: =expadj4 -> 40000 | AV86: =+AT86*100/AT78 ->  | AX86: =expadj5 -> 40000 | AZ86: =+AX86*100/AX78 -> 
AB88: Depreciation | AD88: =depreciation -> 0 | AF88: =IF(ISERR(+AD88*100/sales3),"",(+AD88*100/sales3)) -> 0 | AH88: =forecastdepreciation -> 0 | AJ88: =IF(ISERR(+AH88*100/whatif_sales),"",(+AH88*100/whatif_sales)) -> 0 | AL88: =depnadj2 -> 0 | AN88: =+AL88*100/AL78 ->  | AP88: =depnadj3 -> 0 | AR88: =+AP88*100/AP78 ->  | AT88: =depnadj4 -> 0 | AV88: =+AT88*100/AT78 ->  | AX88: =depnadj5 -> 0 | AZ88: =+AX88*100/AX78 -> 
AB90: Other income | AD90: =otherinc -> 0 | AH90: =proj_otherinc -> 0 | AL90: =othincadj2 -> 0 | AP90: =othincadj3 -> 0 | AT90: =othincadj4 -> 0 | AX90: =othincadj5 -> 0
AB91: Net Profit | AD91: =AD84-AD86-AD88+AD90 -> -20000 | AF91: =IF(ISERR(+AD91*100/sales3),"",(+AD91*100/sales3)) -> -40 | AH91: =+AH84-AH86-AH88+AH90 -> -22104.2 | AJ91: =IF(ISERR(+AH91*100/whatif_sales),"",(+AH91*100/whatif_sales)) -> -44.2084 | AL91: =+AL84-AL86-AL88+AL90 ->  | AN91: =+AL91*100/AL78 ->  | AP91: =+AP84-AP86-AP88+AP90 ->  | AR91: =+AP91*100/AP78 ->  | AT91: =+AT84-AT86-AT88+AT90 ->  | AV91: =+AT91*100/AT78 ->  | AX91: =+AX84-AX86-AX88+AX90 ->  | AZ91: =+AX91*100/AX78 -> 

Sheet 5yr figs
Y1: Business Analyst
A3: Long term projections
C6: Last Year | G6: Year 1 | K6: Year 2 | O6: Year 3 | S6: Year 4 | W6: Year 5
E8: % | I8: % | M8: % | Q8: % | U8: % | Y8: %
E9: of Rev | I9: of Rev | M9: of Rev | Q9: of Rev | U9: of Rev | Y9: of Rev
A10: Gross Revenue | C10: =sales3 -> 50000 | G10: =whatif_sales -> 50000 | K10: =_rev52 ->  | O10: =_rev53 ->  | S10: =_rev54 ->  | W10: =_rev55 -> 
A12: Direct Costs | C12: =dircosts3 -> 10000 | E12: =IF(ISERR(+C12*100/sales3),"",(+C12*100/sales3)) -> 20 | G12: =what_if_dircosts -> 10000 | I12: =IF(ISERR(+G12*100/whatif_sales),"",(+G12*100/whatif_sales)) -> 20 | K12: =_rev52*I12/100 ->  | M12: =+K12*100/K10 ->  | O12: =dircost3 ->  | Q12: =+O12*100/O10 ->  | S12: =dircost4 ->  | U12: =+S12*100/S10 ->  | W12: =dircost5 ->  | Y12: =+W12*100/W10 -> 
A14: Direct Wages | C14: =dirwages -> 20000 | E14: =IF(ISERR(+C14*100/sales3),"",(+C14*100/sales3)) -> 40 | G14: =proj_labour -> 22104.2 | I14: =IF(ISERR(+G14*100/whatif_sales),"",(+G14*100/whatif_sales)) -> 44.2084 | K14: =_dla2 -> 22104 | M14: =+K14*100/K10 ->  | O14: =_dla3 -> 22104 | Q14: =+O14*100/O10 ->  | S14: =_dla4 -> 22104 | U14: =+S14*100/S10 ->  | W14: =_dla5 -> 22104 | Y14: =+W14*100/W10 -> 
A16: Gross Profit | C16: =+C10-C12-C14 -> 20000 | E16: =IF(ISERR(+C16*100/sales3),"",(+C16*100/sales3)) -> 40 | G16: =+G10-G12-G14 -> 17895.8 | I16: =IF(ISERR(+G16*100/whatif_sales),"",(+G16*100/whatif_sales)) -> 35.7916 | K16: =+K10-K12-K14 ->  | M16: =+K16*100/K10 ->  | O16: =+O10-O12-O14 ->  | Q16: =+O16*100/O10 ->  | S16: =+S10-S12-S14 ->  | U16: =+S16*100/S10 ->  | W16: =+W10-W12-W14 ->  | Y16: =+W16*100/W10 -> 
A18: Expenses | C18: =expenses -> 40000 | E18: =IF(ISERR(+C18*100/sales3),"",(+C18*100/sales3)) -> 80 | G18: =forecastexpenses -> 40000 | I18: =IF(ISERR(+G18*100/whatif_sales),"",(+G18*100/whatif_sales)) -> 80 | K18: =expadj2 -> 40000 | M18: =+K18*100/K10 ->  | O18: =expadj3 -> 40000 | Q18: =+O18*100/O10 ->  | S18: =expadj4 -> 40000 | U18: =+S18*100/S10 ->  | W18: =expadj5 -> 40000 | Y18: =+W18*100/W10 -> 
A20: Depreciation | C20: =depreciation -> 0 | E20: =IF(ISERR(+C20*100/sales3),"",(+C20*100/sales3)) -> 0 | G20: =forecastdepreciation -> 0 | I20: =IF(ISERR(+G20*100/whatif_sales),"",(+G20*100/whatif_sales)) -> 0 | K20: =depnadj2 -> 0 | M20: =+K20*100/K10 ->  | O20: =depnadj3 -> 0 | Q20: =+O20*100/O10 ->  | S20: =depnadj4 -> 0 | U20: =+S20*100/S10 ->  | W20: =depnadj5 -> 0 | Y20: =+W20*100/W10 -> 
A22: Other income | C22: =otherinc -> 0 | G22: =proj_otherinc -> 0 | K22: =othincadj2 -> 0 | O22: =othincadj3 -> 0 | S22: =othincadj4 -> 0 | W22: =othincadj5 -> 0
A23: Net Profit | C23: =C16-C18-C20+C22 -> -20000 | E23: =IF(ISERR(+C23*100/sales3),"",(+C23*100/sales3)) -> -40 | G23: =+G16-G18-G20+G22 -> -22104.2 | I23: =IF(ISERR(+G23*100/whatif_sales),"",(+G23*100/whatif_sales)) -> -44.2084 | K23: =+K16-K18-K20+K22 ->  | M23: =+K23*100/K10 ->  | O23: =+O16-O18-O20+O22 ->  | Q23: =+O23*100/O10 ->  | S23: =+S16-S18-S20+S22 ->  | U23: =+S23*100/S10 ->  | W23: =+W16-W18-W20+W22 ->  | Y23: =+W23*100/W10 -> 

Sheet finish
K2: Business Analyst
B5: Printing Options
B7: Print Business Analyst Report (including Making Even More Profit Page & Graphs) | H7: 2 | J7: Yes
J8: No
H9: 2
H11: 2
B14: Print Scenario Set on Previous Page | H14: 2
B17: Print "One page Taster" | H17: 2
B21: Print "One page Cashflow" | H21: 2
B24: Print "One page KPIS" | H24: 1
B26: Print Five Year summary and assumptions | H26: 2
B29: Select the required printing options above and then select the button 'Print' opposite.

Sheet Growth
A2: Questions for meetings - taken and adapted from the 2020 Consulting Manual - obtainable from 2020 - price on application. This page is customisable so you can add your own questions or change the existing text.
A4: ProfitFocus
A5: A series of questions to prompt discussions
A7: Strategy
A9: What are your personal objectives? Where are you going?
A10: Do you have a retirement date or exit route in mind?
A12: Do you spend enough time away from the business? | L12: index | M12: driver
A13: Are there any particular events that you would like to happen in the next five years? | L13: 1 | M13: Hours
A14: What don't you want in your life? | L14: 2 | M14: Bed Nights
A15: What do you want in your life?
A16: What will your business look like in five years? | L16: 3 | M16: Covers
A17: How are you going to get there? | L17: 4 | M17: Other
A18: What stops you doing it - what gets in the way - what is a challenge? | L18: 5 | M18: Sales
A19: What information do you need to run your business and check how you are doing on your strategic plan? | L19: 1
L20: 2
A21: Marketing | L21: 3
A22: What existing products or services does the company offer? | L22: 4
A23: Which products or services have the potential for growth? | L23: 5
A24: Which products or services are in decline? | L24: 6
A25: Which potential products or services could the business deliver over the next five years? | L25: 7
A26: Are you located in the right place to deliver your products or services?
A27: Do you know the lifetime value of a customer?
A28: Do you know how much it costs to get a new customer?
A29: What do you do really well or differently compared to your competitors? | L29: 4 | M29: nights open
A30: What are the characteristics of your best and worse customers?
A31: What referral systems do you have in place?
A32: Have you reviewed your customer care procedures?
A33: What is your biggest customer complaint?
A34: Have you reviewed your marketing material?
A35: What do your customers really want? How do you know?
A37: Finance
A38: Have you reviewed your accounting system and accounting procedures?
A39: What don't you like about the current accounting system?
A40: What do you like about the current accounting system?
A41: Do you know your breakeven point?
A42: Have you carried out a "What if?" Analysis on your prices? Costs? Units sold?
A43: Do you set budgets and compare against actuals?
A44: Do you do a cash flow?
A46: Management
A47: Do you have systems in place-"This is the way we do it here"?
A48: Do you have an organisation chart?
A49: Do you have job descriptions?
A50: Have you reviewed employment contracts and procedures and other human resources issues?
A51: Do you encourage personal development of staff?
L63: =data!$I$2 -> 1

Sheet Intro
A2: Introduction
A4: This program is used to illustrate in an easy to understand way the well known "three ways to grow the business". These are:increase the number of customers, increasing the value of each sell or selling more often to the same customers. Taking just some salient figures from the last accounts this can quickly be achieved. For full details you should refer to the Word document that accompanies this Excel template.
A9: The fourth way to grow the business - introduce systems - is the follow on from using this product. The growth strategies questions is a way of leading into consultancy services. The questions are built on the 2020 Consulting Manual.

Sheet Sheet1

Sheet PSW_Sheet

Sheet Sheet2
